Workbook

Sheet الإخطار
G3: إخطار
C4: مديونية السيد / | F4: =البحث!L4 -> محمد ابراهيم حسان
H5: فرعي | I5: حساب | J5: يومية | K5: منطقة | N5: وصف المكان
H6: =البحث!F4 -> 0 | I6: =البحث!G4 -> 420 | J6: =البحث!H4 -> 12 | K6: =البحث!I4 -> 3 | N6: =البحث!J4 -> شقة
C8: نهيب بسيادتكم سرعة سداد المديونية
C9: حتي شهر | D9: =البحث!C4 -> 0 | G9: مبلغ وقدره | I9: =البحث!B4 -> ج فاتوره
C10: فقط | D10: =البحث!B11 ->  | L10: لا غير

Sheet البحث
M2: رفم العميل | O2: رفم العميل
B3: قيمة الجدولة | C3: حتي شهر | D3: بقيمة | E3: عدد الايصالات | F3: f4 | G3: f3 | H3: f2 | I3: f1 | J3: وصف المكان | K3: العنوان | L3: اسم العميل
B4: =INDEX(البيانات!A:Q,E5+6,11) -> ج فاتوره | C4: =INDEX(البيانات!A:Q,E5+5,10) -> 0 | D4: =IFERROR(VLOOKUP($O$4,البيانات!$A$1:$P$181,16,FALSE),"1 ") -> 0 | E4: =INDEX(البيانات!A:Q,E5+6,16) -> 0 | F4: =IFERROR(VLOOKUP($O$4,البيانات!A:Q,6,FALSE),"1 ") -> 0 | G4: =IFERROR(VLOOKUP($O$4,البيانات!A:Q,7,FALSE),"1 ") -> 420 | H4: =IFERROR(VLOOKUP($O$4,البيانات!A:Q,8,FALSE),"1 ") -> 12 | I4: =IFERROR(VLOOKUP($O$4,البيانات!A:Q,9,FALSE),"1 ") -> 3 | J4: =IFERROR(VLOOKUP($O$4,البيانات!A:Q,4,FALSE),"1 ") -> شقة | K4: =IFERROR(VLOOKUP($O$4,البيانات!A:Q,3,FALSE),"1 ") -> البرنس عزيز ط 0 | L4: =IFERROR(VLOOKUP($O$4,البيانات!A:Q,2,FALSE),"1 ") -> محمد ابراهيم حسان | M4: =IFERROR(VLOOKUP($O$4,البيانات!A:Q,1,FALSE),"1 ") -> 17587106 | O4: 17587106 | P4: 1668973
E5: =MATCH(O4,البيانات!A:A,0) -> 27 | F5: رقم الصف match
E6: =INDEX(البيانات!$A1:$L$19,14,10) -> 0 | F6: index | G6: =INDEX(البيانات!A:P,البحث!E5+1,E7) -> 2022/11
E7: 10 | F7: عمود الشهر
E8: 11 | F8: عمود السنة
B11: =NumberToText(B4,"جنيها","قرشا") ->  | D11: =NumberToText(D4,"جنيها","قرشا") -> صفر
D17: =J4 -> شقة

Sheet البيانات
A1: رقم العميل | B1: اسم العميل | C1: عنوان | D1: وصف | E1: رقم المنتج | F1: f4 | G1: f3 | H1: f2 | I1: f1
A2: 940230 | B2: محمد محمد سيد احمد | C2: ع بركه البغال 0 | D2: شقة | E2: 375649 | F2: 0 | G2: 180 | H2: 6 | I2: 3 | J2: الشهر | K2: ج فاتوره | L2: اضافات | M2: اصل الفاتورة
J3: 2022/10 | K3: 317 | L3: 0 | M3: 317
J4: 2022/11 | K4: 225 | L4: 0 | M4: 225
J5: 2022/12 | K5: 220 | L5: 0 | M5: 220
J6: 2023/1 | K6: 227 | L6: 0 | M6: 227
E7: قيمة فاتوره | K7: 4543.4 | O7: 989 | P7: 4 | Q7: عدد فواتير
A8: 213242 | B8: محمد عبدالحميد علي | C8: درب البهلوان 0 | D8: ورشة | E8: 331057 | F8: 0 | G8: 90 | H8: 10 | I8: 3 | J8: ش الاصدار | K8: ج فاتوره | L8: نظافه | M8: اناره
J9: 2022/10 | K9: 507 | L9: 0 | M9: 507
J10: 2022/11 | K10: 540 | L10: 0 | M10: 540
J11: 2022/12 | K11: 522 | L11: 0 | M11: 522
J12: 2023/1 | K12: 532 | L12: 0 | M12: 532
J13: 2023/2 | K13: 553 | L13: 0 | M13: 553
E14: قيمة فاتوره | K14: 4873.2 | O14: 2654 | P14: 5 | Q14: عدد فواتير
A15: 2376878 | B15: فاطمه علي محمد فرج | C15: 2 شالمهندس غ 0 | D15: شقة | E15: 975456 | F15: 20 | G15: 102 | H15: 12 | I15: 3 | J15: ش الاصدار | K15: ج فاتوره | L15: نظافه | M15: اناره
J16: 2022/10 | K16: 338 | L16: 5 | M16: 333
J17: 2022/11 | K17: 316 | L17: 5 | M17: 311
J18: 2022/12 | K18: 316 | L18: 5 | M18: 311
J19: 2023/1 | K19: 318 | L19: 5 | M19: 313
J20: 2023/2 | K20: 326 | L20: 5 | M20: 321
E21: قيمة فاتوره | K21: 4848 | O21: 1614 | P21: 5 | Q21: عدد فواتير
A22: 8045545 | B22: محمد توفيق غانم | C22: 2ح عفيفي من حسن حَض ن اهس0 | D22: شقة | E22: 70 | F22: 0 | G22: 256 | H22: 12 | I22: 3 | J22: ش الاصدار | K22: ج فاتوره | L22: نظافه | M22: اناره
J23: 2022/12 | K23: 146 | L23: 5 | M23: 141
J24: 2023/1 | K24: 147 | L24: 5 | M24: 142
J25: 2023/2 | K25: 163 | L25: 5 | M25: 158
E26: قيمة فاتوره | K26: 3412.1 | O26: 611 | P26: 4 | Q26: عدد فواتير
A27: 17587106 | B27: محمد ابراهيم حسان | C27: البرنس عزيز ط 0 | D27: شقة | E27: 32087 | F27: 0 | G27: 420 | H27: 12 | I27: 3 | J27: ش الاصدار | K27: ج فاتوره | L27: نظافه | M27: اناره
J28: 2022/11 | K28: 1737 | L28: 5 | M28: 1732
J29: 2022/12 | K29: 856 | L29: 5 | M29: 851
J30: 2023/1 | K30: 824 | L30: 5 | M30: 819
J31: 2023/2 | K31: 786 | L31: 5 | M31: 781
E32: قيمة فاتوره | K32: 16773.3 | O32: 5217 | P32: 5 | Q32: عدد فواتير
A33: 2474143 | B33: احمد محمد حسن | C33: البرنس عزيز 0 | D33: شقة | E33: 196059 | F33: 0 | G33: 5 | H33: 13 | I33: 3 | J33: ش الاصدار | K33: ج فاتوره | L33: نظافه | M33: اناره
J34: 2022/10 | K34: 775 | L34: 5 | M34: 770
J35: 2022/11 | K35: 806 | L35: 5 | M35: 801
J36: 2022/12 | K36: 763 | L36: 5 | M36: 758
J37: 2023/1 | K37: 769 | L37: 5 | M37: 764
J38: 2023/2 | K38: 726 | L38: 5 | M38: 721
E39: قيمة فاتوره | K39: 15848.3 | O39: 3839 | P39: 5 | Q39: عدد فواتير
A40: 886387 | B40: بدر اسماعيل العداوي | C40: البرنس عزيز 0 | D40: شقة | E40: 496063 | F40: 0 | G40: 25 | H40: 13 | I40: 3 | J40: ش الاصدار | K40: ج فاتوره | L40: نظافه | M40: اناره
J41: 2022/10 | K41: 685 | L41: 5 | M41: 680
J42: 2022/11 | K42: 700 | L42: 5 | M42: 695
J43: 2022/12 | K43: 715 | L43: 5 | M43: 710
J44: 2023/1 | K44: 730 | L44: 5 | M44: 725
J45: 2023/2 | K45: 745 | L45: 5 | M45: 740
E46: قيمة فاتوره | K46: 10138 | O46: 3575 | P46: 5 | Q46: عدد فواتير
A47: 1286426 | B47: محمد احمد نصر | C47: ح فوءاد ط 0 | D47: شقة | E47: 420788 | F47: 0 | G47: 320 | H47: 20 | I47: 3 | J47: ش الاصدار | K47: ج فاتوره | L47: نظافه | M47: اناره
J48: 2022/12 | K48: 899 | L48: 0 | M48: 899
J49: 2023/1 | K49: 899 | L49: 0 | M49: 899
J50: 2023/2 | K50: 900 | L50: 0 | M50: 900
E51: قيمة فاتوره | K51: 5658 | O51: 2698 | P51: 3 | Q51: عدد فواتير
A52: 870820 | B52: ع العزيز ع الرحيم | C52: عطفه مظهر 0 | D52: شقة | E52: 48610 | F52: 0 | G52: 395 | H52: 20 | I52: 3 | J52: ش الاصدار | K52: ج فاتوره | L52: نظافه | M52: اناره
J53: 2022/10 | K53: 321 | L53: 0 | M53: 321
J54: 2022/11 | K54: 322 | L54: 0 | M54: 322
J55: 2022/12 | K55: 304 | L55: 0 | M55: 304
J56: 2023/1 | K56: 310 | L56: 0 | M56: 310
J57: 2023/2 | K57: 317 | L57: 0 | M57: 317
E58: قيمة فاتوره | K58: 5430 | O58: 1574 | P58: 5 | Q58: عدد فواتير
A59: 2563937 | B59: علي محمد فردوش | C59: مراسينا 0 | D59: شقة | E59: 932384 | F59: 0 | G59: 285 | H59: 22 | I59: 3 | J59: ش الاصدار | K59: ج فاتوره | L59: نظافه | M59: اناره
J60: 2022/10 | K60: 175 | L60: 5 | M60: 170
J61: 2022/11 | K61: 177 | L61: 5 | M61: 172
J62: 2022/12 | K62: 184 | L62: 5 | M62: 179
J63: 2023/1 | K63: 180 | L63: 5 | M63: 175
J64: 2023/2 | K64: 182 | L64: 5 | M64: 177
E65: قيمة فاتوره | K65: 4820.7 | O65: 898 | P65: 5 | Q65: عدد فواتير
A66: 222411 | B66: مصطفي حسن محمد | C66: ح0مارسينا للسيده 0 | D66: شقة | E66: 438532 | F66: 5 | G66: 335 | H66: 22 | I66: 3 | J66: ش الاصدار | K66: ج فاتوره | L66: نظافه | M66: اناره
J67: 2022/11 | K67: 373 | L67: 5 | M67: 368
J68: 2022/12 | K68: 328 | L68: 5 | M68: 323
J69: 2023/1 | K69: 317 | L69: 5 | M69: 312
J70: 2023/2 | K70: 284 | L70: 5 | M70: 279
E71: قيمة فاتوره | K71: 5668.8 | O71: 1713 | P71: 5 | Q71: عدد فواتير
A72: 1687417 | B72: حسن عبد الرحمن حسن | C72: ش عبد المجيد اللب 0 | D72: شقة | E72: 237904 | F72: 0 | G72: 115 | H72: 7 | I72: 4 | J72: ش الاصدار | K72: ج فاتوره | L72: نظافه | M72: اناره
J73: 2022/10 | K73: 431 | L73: 0 | M73: 431
J74: 2022/11 | K74: 428 | L74: 0 | M74: 428
J75: 2022/12 | K75: 426 | L75: 0 | M75: 426
J76: 2023/1 | K76: 441 | L76: 0 | M76: 441
J77: 2023/2 | K77: 455 | L77: 0 | M77: 455
E78: قيمة فاتوره | K78: 3815 | O78: 2181 | P78: 5 | Q78: عدد فواتير
A79: 718798 | B79: فوءاد محمد حجازي | C79: ح ابن الفرات الخض 0 | D79: شقة | E79: 459878 | F79: 0 | G79: 495 | H79: 8 | I79: 4 | J79: ش الاصدار | K79: ج فاتوره | L79: نظافه | M79: اناره
J80: 2022/10 | K80: 288 | L80: 5 | M80: 283
J81: 2022/11 | K81: 295 | L81: 5 | M81: 290
J82: 2022/12 | K82: 301 | L82: 5 | M82: 296
J83: 2023/1 | K83: 308 | L83: 5 | M83: 303
J84: 2023/2 | K84: 314 | L84: 5 | M84: 309
E85: قيمة فاتوره | K85: 4126 | O85: 1506 | P85: 5 | Q85: عدد فواتير
A86: 10143425 | B86: زكي محمود زكي | C86: ح المعمار ش قدري 0 | D86: شقة | E86: 25329 | F86: 0 | G86: 30 | H86: 16 | I86: 4 | J86: ش الاصدار | K86: ج فاتوره | L86: نظافه | M86: اناره
J87: 2022/10 | K87: 558 | L87: 0 | M87: 558
J88: 2022/11 | K88: 541 | L88: 0 | M88: 541
J89: 2022/12 | K89: 525 | L89: 0 | M89: 525
J90: 2023/1 | K90: 532 | L90: 0 | M90: 532
E91: قيمة فاتوره | K91: 11273.4 | O91: 2156 | P91: 4 | Q91: عدد فواتير
A92: 1305403 | B92: عباس احمد حسين | C92: ش سلامه 0 | D92: شقة | E92: 438807 | F92: 0 | G92: 285 | H92: 5 | I92: 5 | J92: ش الاصدار | K92: ج فاتوره | L92: نظافه | M92: اناره
J93: 2022/10 | K93: 673 | L93: 5 | M93: 668
J94: 2022/11 | K94: 509 | L94: 5 | M94: 504
J95: 2022/12 | K95: 370 | L95: 5 | M95: 365
J96: 2023/1 | K96: 363 | L96: 5 | M96: 358
J97: 2023/2 | K97: 384 | L97: 5 | M97: 379
E98: قيمة فاتوره | K98: 4368 | O98: 2299 | P98: 5 | Q98: عدد فواتير
A99: 3037260 | B99: مني ع الرحمن السيد | C99: ش سلامه السيدة 0 | D99: شقة | E99: 607240 | F99: 1 | G99: 295 | H99: 5 | I99: 5 | J99: ش الاصدار | K99: ج فاتوره | L99: نظافه | M99: اناره
J100: 2022/10 | K100: 2401 | L100: 5 | M100: 2396
J101: 2022/11 | K101: 1163 | L101: 5 | M101: 1158
J102: 2022/12 | K102: 944 | L102: 5 | M102: 939
J103: 2023/1 | K103: 797 | L103: 5 | M103: 792
J104: 2023/2 | K104: 581 | L104: 5 | M104: 576
E105: قيمة فاتوره | K105: 5886 | O105: 5886 | P105: 5 | Q105: عدد فواتير
A106: 3330353 | B106: محمد سيد احمد محمد | C106: 24 ش مقامي الس 0 | D106: شقة | E106: 558475 | F106: 0 | G106: 225 | H106: 6 | I106: 5 | J106: ش الاصدار | K106: ج فاتوره | L106: نظافه | M106: اناره
J107: 2022/10 | K107: 461 | L107: 5 | M107: 456
J108: 2022/11 | K108: 230 | L108: 5 | M108: 225
J109: 2022/12 | K109: 315 | L109: 5 | M109: 310
J110: 2023/1 | K110: 306 | L110: 5 | M110: 301
J111: 2023/2 | K111: 233 | L111: 5 | M111: 228
E112: قيمة فاتوره | K112: 3142 | O112: 1545 | P112: 5 | Q112: عدد فواتير
A113: 1143618 | B113: مصطفي محمد حربوش | C113: حاره البهلوان 0 | D113: شقة | E113: 583241 | F113: 0 | G113: 375 | H113: 7 | I113: 5 | J113: ش الاصدار | K113: ج فاتوره | L113: نظافه | M113: اناره
J114: 2022/12 | K114: 471 | L114: 0 | M114: 471
J115: 2023/1 | K115: 326 | L115: 5 | M115: 321
J116: 2023/2 | K116: 436 | L116: 5 | M116: 431
E117: قيمة فاتوره | K117: 4131.8 | O117: 1233 | P117: 3 | Q117: عدد فواتير
A118: 378630 | B118: مصطفي المهدي | C118: ش التلول 0 | D118: شقة | E118: 436841 | F118: 0 | G118: 500 | H118: 7 | I118: 5 | J118: ش الاصدار | K118: ج فاتوره | L118: نظافه | M118: اناره
J119: 2022/10 | K119: 184 | L119: 0 | M119: 184
J120: 2022/11 | K120: 777 | L120: 5 | M120: 772
J121: 2022/12 | K121: 445 | L121: 5 | M121: 440
J122: 2023/1 | K122: 470 | L122: 5 | M122: 465
J123: 2023/2 | K123: 384 | L123: 5 | M123: 379
E124: قيمة فاتوره | K124: 6487.3 | O124: 2260 | P124: 5 | Q124: عدد فواتير
A125: 194505 | B125: احسان محمود ابراهيم | C125: شارع الشيخ البغال 0 | D125: معرض موبيليا | E125: 482133 | F125: 1 | G125: 101 | H125: 10 | I125: 5 | J125: ش الاصدار | K125: ج فاتوره | L125: نظافه | M125: اناره
J126: 2022/10 | K126: 358 | L126: 0 | M126: 358
J127: 2022/11 | K127: 343 | L127: 0 | M127: 343
J128: 2022/12 | K128: 319 | L128: 0 | M128: 319
J129: 2023/1 | K129: 405 | L129: 0 | M129: 405
J130: 2023/2 | K130: 344 | L130: 0 | M130: 344
E131: قيمة فاتوره | K131: 5175.6 | O131: 1769 | P131: 5 | Q131: عدد فواتير
A132: 1669294 | B132: محمد فرج محمد فرج | C132: ش الشيخ البغال / السيدة زينب | D132: شقة | E132: 15942 | F132: 31 | G132: 114 | H132: 10 | I132: 5 | J132: ش الاصدار | K132: ج فاتوره | L132: نظافه | M132: اناره
J133: 2022/10 | K133: 387 | L133: 0 | M133: 387
J134: 2022/11 | K134: 210 | L134: 0 | M134: 210
J135: 2022/12 | K135: 259 | L135: 0 | M135: 259
J136: 2023/1 | K136: 293 | L136: 0 | M136: 293
J137: 2023/2 | K137: 268 | L137: 0 | M137: 268
E138: قيمة فاتوره | K138: 4325.4 | O138: 1417 | P138: 5 | Q138: عدد فواتير
A139: 1046921 | B139: محمد احمد ع الرازق الدقي | C139: 6 عطفة لبيب تالبههوان?ز0 | D139: شقة | E139: 101505 | F139: 1 | G139: 335 | H139: 11 | I139: 5 | J139: ش الاصدار | K139: ج فاتوره | L139: نظافه | M139: اناره
J140: 2022/12 | K140: 429 | L140: 0 | M140: 429
J141: 2023/1 | K141: 1075 | L141: 5 | M141: 1070
J142: 2023/2 | K142: 429 | L142: 0 | M142: 429
E143: قيمة فاتوره | K143: 3822 | O143: 1933 | P143: 3 | Q143: عدد فواتير
A144: 4492483 | B144: ورثه ت محمد منصور حسنين | C144: 7 ش مراد غالب لسيَض ه0 | D144: شقة | E144: 912039 | F144: 0 | G144: 97 | H144: 13 | I144: 5 | J144: ش الاصدار | K144: ج فاتوره | L144: نظافه | M144: اناره
J145: 2022/11 | K145: 334 | L145: 0 | M145: 334
J146: 2022/12 | K146: 503 | L146: 5 | M146: 498
J147: 2023/1 | K147: 1521 | L147: 5 | M147: 1516
J148: 2023/2 | K148: 810 | L148: 5 | M148: 805
E149: قيمة فاتوره | K149: 9068.6 | O149: 4067 | P149: 5 | Q149: عدد فواتير
A150: 812451 | B150: حمزه عبدالحفيظ | C150: ع بركه البغال ط 0 | D150: محل بقالة | E150: 649210 | F150: 0 | G150: 410 | H150: 18 | I150: 5 | J150: ش الاصدار | K150: ج فاتوره | L150: نظافه | M150: اناره
J151: 2022/10 | K151: 512 | L151: 0 | M151: 512
J152: 2022/11 | K152: 511 | L152: 0 | M152: 511
J153: 2022/12 | K153: 378 | L153: 0 | M153: 378
J154: 2023/1 | K154: 378 | L154: 0 | M154: 378
J155: 2023/2 | K155: 378 | L155: 0 | M155: 378
E156: قيمة فاتوره | K156: 5475.6 | O156: 2157 | P156: 5 | Q156: عدد فواتير
A157: 850492 | B157: احمد علي عبدالله | C157: ش السبيل البغاله 0 | D157: محل أثاث و مفروشات | E157: 545546 | F157: 0 | G157: 135 | H157: 19 | I157: 5 | J157: ش الاصدار | K157: ج فاتوره | L157: نظافه | M157: اناره
J158: 2022/10 | K158: 421 | L158: 0 | M158: 421
J159: 2022/11 | K159: 387 | L159: 0 | M159: 387
J160: 2022/12 | K160: 357 | L160: 0 | M160: 357
J161: 2023/1 | K161: 369 | L161: 0 | M161: 369
J162: 2023/2 | K162: 377 | L162: 0 | M162: 377
E163: قيمة فاتوره | K163: 5727.3 | O163: 1911 | P163: 5 | Q163: عدد فواتير
A164: 1817215 | B164: فاتن رجائي محمد حنفي | C164: ش نافعي السيده ز 0 | D164: بوتيك | E164: 840488 | F164: 5 | G164: 396 | H164: 5 | I164: 6 | J164: ش الاصدار | K164: ج فاتوره | L164: نظافه | M164: اناره
J165: 2022/12 | K165: 776 | L165: 15 | M165: 761
J166: 2023/1 | K166: 817 | L166: 15 | M166: 802
J167: 2023/2 | K167: 767 | L167: 0 | M167: 767
E168: قيمة فاتوره | K168: 4340.9 | O168: 2360 | P168: 3 | Q168: عدد فواتير
A169: 1103599 | B169: عبدالحميد الشاعر | C169: التلول 0 | D169: شقة | E169: 198657 | F169: 0 | G169: 247 | H169: 7 | I169: 6 | J169: ش الاصدار | K169: ج فاتوره | L169: نظافه | M169: اناره
J170: 2022/11 | K170: 723 | L170: 5 | M170: 718
J171: 2022/12 | K171: 481 | L171: 0 | M171: 481
J172: 2023/1 | K172: 481 | L172: 0 | M172: 481
J173: 2023/2 | K173: 172 | L173: 0 | M173: 172
E174: قيمة فاتوره | K174: 3218 | O174: 1857 | P174: 4 | Q174: عدد فواتير
A175: 1668973 | B175: حسنه محمد محمود | C175: ش التلول ت السيد 1 | D175: شقة | E175: 345328 | F175: 20 | G175: 7 | H175: 8 | I175: 6 | J175: ش الاصدار | K175: ج فاتوره | L175: نظافه | M175: اناره
J176: 2022/10 | K176: 457 | L176: 5 | M176: 452
J177: 2022/11 | K177: 425 | L177: 5 | M177: 420
J178: 2022/12 | K178: 419 | L178: 5 | M178: 414
J179: 2023/1 | K179: 415 | L179: 5 | M179: 410
J180: 2023/2 | K180: 440 | L180: 5 | M180: 435
E181: قيمة فاتوره | K181: 3117 | O181: 2156 | P181: 5 | Q181: عدد فواتير

Sheet القوائم
A1: =COUNT(D2:D30000) -> 28 | C1: دالة البحث | D1: f1 | E1: اكبر مجموع مديونيات | G1: بعدد فواتير | H1: =SUBTOTAL(2,B2:B10000) -> 3 | I1: الإدارة | J1: الجزيرة | K1: رقم الصف | L1: القيمة | M1: مجموع المناطق | N1: عدد الايصالات | O1: مجموع الفواتير | P1: رقم الصف | Q1: =MATCH(U1,M:M,0) -> 2 | R1: عدد الحالات | S1: =SUBTOTAL(2,B:B) -> 3 | T1: اكبر مجموع مديونيات | U1: =MAX(M:M) -> 48016.2 | V1: المنطقة f1 | W1: =INDEX(D:O,Q1,1) -> 3 | X1: بعدد فواتير | Y1: =INDEX(D:O,Q1,12) -> 30
B2: 940230 | C2: =VLOOKUP(B2,البيانات!A:Q,1,FALSE) -> 940230 | D2: =VLOOKUP(B2,البيانات!A:Q,9,FALSE) -> 3 | K2: =IFERROR(MATCH(B2,البيانات!A:A,0),"") -> 2 | L2: =IFERROR(INDEX(البيانات!A:Q,K2+6,11),"") -> ج فاتوره | M2: =IFERROR(SUMIF($D:$D,$D:$D,$L:$L),"") -> 48016.2 | N2: =IFERROR(INDEX(البيانات!A:Q,K2+6,16),"") -> 0 | O2: =SUMIF($D:$D,$D:$D,$N:$N) -> 30
B3: 213242 | C3: =VLOOKUP(B3,البيانات!A:Q,1,FALSE) -> 213242 | D3: =VLOOKUP(B3,البيانات!A:Q,9,FALSE) -> 3 | K3: =IFERROR(MATCH(B3,البيانات!A:A,0),"") -> 8 | L3: =IFERROR(INDEX(البيانات!A:Q,K3+6,11),"") -> 4873.2 | M3: 48016.2 | N3: =IFERROR(INDEX(البيانات!A:Q,K3+6,16),"") -> 5 | O3: 30
B4: 2376878 | C4: =VLOOKUP(B4,البيانات!A:Q,1,FALSE) -> 2376878 | D4: =VLOOKUP(B4,البيانات!A:Q,9,FALSE) -> 3 | K4: =IFERROR(MATCH(B4,البيانات!A:A,0),"") -> 15 | L4: =IFERROR(INDEX(البيانات!A:Q,K4+6,11),"") -> 4848 | M4: 48016.2 | N4: =IFERROR(INDEX(البيانات!A:Q,K4+6,16),"") -> 5 | O4: 30
B5: 8045545 | C5: =VLOOKUP(B5,البيانات!A:Q,1,FALSE) -> 8045545 | D5: =VLOOKUP(B5,البيانات!A:Q,9,FALSE) -> 3 | K5: =IFERROR(MATCH(B5,البيانات!A:A,0),"") -> 22 | L5: =IFERROR(INDEX(البيانات!A:Q,K5+6,11),"") -> 1737 | M5: 48016.2 | N5: =IFERROR(INDEX(البيانات!A:Q,K5+6,16),"") -> 0 | O5: 30
B6: 17587106 | C6: =VLOOKUP(B6,البيانات!A:Q,1,FALSE) -> 17587106 | D6: =VLOOKUP(B6,البيانات!A:Q,9,FALSE) -> 3 | K6: =IFERROR(MATCH(B6,البيانات!A:A,0),"") -> 27 | L6: =IFERROR(INDEX(البيانات!A:Q,K6+6,11),"") -> ج فاتوره | M6: 48016.2 | N6: =IFERROR(INDEX(البيانات!A:Q,K6+6,16),"") -> 0 | O6: 30
B7: 2474143 | C7: =VLOOKUP(B7,البيانات!A:Q,1,FALSE) -> 2474143 | D7: =VLOOKUP(B7,البيانات!A:Q,9,FALSE) -> 3 | K7: =IFERROR(MATCH(B7,البيانات!A:A,0),"") -> 33 | L7: =IFERROR(INDEX(البيانات!A:Q,K7+6,11),"") -> 15848.3 | M7: 48016.2 | N7: =IFERROR(INDEX(البيانات!A:Q,K7+6,16),"") -> 5 | O7: 30
B8: 886387 | C8: =VLOOKUP(B8,البيانات!A:Q,1,FALSE) -> 886387 | D8: =VLOOKUP(B8,البيانات!A:Q,9,FALSE) -> 3 | K8: =IFERROR(MATCH(B8,البيانات!A:A,0),"") -> 40 | L8: =IFERROR(INDEX(البيانات!A:Q,K8+6,11),"") -> 10138 | M8: 48016.2 | N8: =IFERROR(INDEX(البيانات!A:Q,K8+6,16),"") -> 5 | O8: 30
B9: 1286426 | C9: =VLOOKUP(B9,البيانات!A:Q,1,FALSE) -> 1286426 | D9: =VLOOKUP(B9,البيانات!A:Q,9,FALSE) -> 3 | K9: =IFERROR(MATCH(B9,البيانات!A:A,0),"") -> 47 | L9: =IFERROR(INDEX(البيانات!A:Q,K9+6,11),"") -> 321 | M9: 48016.2 | N9: =IFERROR(INDEX(البيانات!A:Q,K9+6,16),"") -> 0 | O9: 30
B10: 870820 | C10: =VLOOKUP(B10,البيانات!A:Q,1,FALSE) -> 870820 | D10: =VLOOKUP(B10,البيانات!A:Q,9,FALSE) -> 3 | K10: =IFERROR(MATCH(B10,البيانات!A:A,0),"") -> 52 | L10: =IFERROR(INDEX(البيانات!A:Q,K10+6,11),"") -> 5430 | M10: 48016.2 | N10: =IFERROR(INDEX(البيانات!A:Q,K10+6,16),"") -> 5 | O10: 30
B11: 2563937 | C11: =VLOOKUP(B11,البيانات!A:Q,1,FALSE) -> 2563937 | D11: =VLOOKUP(B11,البيانات!A:Q,9,FALSE) -> 3 | K11: =IFERROR(MATCH(B11,البيانات!A:A,0),"") -> 59 | L11: =IFERROR(INDEX(البيانات!A:Q,K11+6,11),"") -> 4820.7 | M11: 48016.2 | N11: =IFERROR(INDEX(البيانات!A:Q,K11+6,16),"") -> 5 | O11: 30
B12: 222411 | C12: =VLOOKUP(B12,البيانات!A:Q,1,FALSE) -> 222411 | D12: =VLOOKUP(B12,البيانات!A:Q,9,FALSE) -> 3 | K12: =IFERROR(MATCH(B12,البيانات!A:A,0),"") -> 66 | L12: =IFERROR(INDEX(البيانات!A:Q,K12+6,11),"") -> ج فاتوره | M12: 48016.2 | N12: =IFERROR(INDEX(البيانات!A:Q,K12+6,16),"") -> 0 | O12: 30
B13: 1687417 | C13: =VLOOKUP(B13,البيانات!A:Q,1,FALSE) -> 1687417 | D13: =VLOOKUP(B13,البيانات!A:Q,9,FALSE) -> 4 | K13: =IFERROR(MATCH(B13,البيانات!A:A,0),"") -> 72 | L13: =IFERROR(INDEX(البيانات!A:Q,K13+6,11),"") -> 3815 | M13: 7941 | N13: =IFERROR(INDEX(البيانات!A:Q,K13+6,16),"") -> 5 | O13: 10
B14: 718798 | C14: =VLOOKUP(B14,البيانات!A:Q,1,FALSE) -> 718798 | D14: =VLOOKUP(B14,البيانات!A:Q,9,FALSE) -> 4 | K14: =IFERROR(MATCH(B14,البيانات!A:A,0),"") -> 79 | L14: =IFERROR(INDEX(البيانات!A:Q,K14+6,11),"") -> 4126 | M14: 7941 | N14: =IFERROR(INDEX(البيانات!A:Q,K14+6,16),"") -> 5 | O14: 10
B15: 10143425 | C15: =VLOOKUP(B15,البيانات!A:Q,1,FALSE) -> 10143425 | D15: =VLOOKUP(B15,البيانات!A:Q,9,FALSE) -> 4 | K15: =IFERROR(MATCH(B15,البيانات!A:A,0),"") -> 86 | L15: =IFERROR(INDEX(البيانات!A:Q,K15+6,11),"") -> ج فاتوره | M15: 7941 | N15: =IFERROR(INDEX(البيانات!A:Q,K15+6,16),"") -> 0 | O15: 10
B16: 1305403 | C16: =VLOOKUP(B16,البيانات!A:Q,1,FALSE) -> 1305403 | D16: =VLOOKUP(B16,البيانات!A:Q,9,FALSE) -> 5 | K16: =IFERROR(MATCH(B16,البيانات!A:A,0),"") -> 92 | L16: =IFERROR(INDEX(البيانات!A:Q,K16+6,11),"") -> 4368 | M16: 41105.2 | N16: =IFERROR(INDEX(البيانات!A:Q,K16+6,16),"") -> 5 | O16: 40
B17: 3037260 | C17: =VLOOKUP(B17,البيانات!A:Q,1,FALSE) -> 3037260 | D17: =VLOOKUP(B17,البيانات!A:Q,9,FALSE) -> 5 | K17: =IFERROR(MATCH(B17,البيانات!A:A,0),"") -> 99 | L17: =IFERROR(INDEX(البيانات!A:Q,K17+6,11),"") -> 5886 | M17: 41105.2 | N17: =IFERROR(INDEX(البيانات!A:Q,K17+6,16),"") -> 5 | O17: 40
B18: 3330353 | C18: =VLOOKUP(B18,البيانات!A:Q,1,FALSE) -> 3330353 | D18: =VLOOKUP(B18,البيانات!A:Q,9,FALSE) -> 5 | K18: =IFERROR(MATCH(B18,البيانات!A:A,0),"") -> 106 | L18: =IFERROR(INDEX(البيانات!A:Q,K18+6,11),"") -> 3142 | M18: 41105.2 | N18: =IFERROR(INDEX(البيانات!A:Q,K18+6,16),"") -> 5 | O18: 40
B19: 1143618 | C19: =VLOOKUP(B19,البيانات!A:Q,1,FALSE) -> 1143618 | D19: =VLOOKUP(B19,البيانات!A:Q,9,FALSE) -> 5 | K19: =IFERROR(MATCH(B19,البيانات!A:A,0),"") -> 113 | L19: =IFERROR(INDEX(البيانات!A:Q,K19+6,11),"") -> 184 | M19: 41105.2 | N19: =IFERROR(INDEX(البيانات!A:Q,K19+6,16),"") -> 0 | O19: 40
B20: 378630 | C20: =VLOOKUP(B20,البيانات!A:Q,1,FALSE) -> 378630 | D20: =VLOOKUP(B20,البيانات!A:Q,9,FALSE) -> 5 | K20: =IFERROR(MATCH(B20,البيانات!A:A,0),"") -> 118 | L20: =IFERROR(INDEX(البيانات!A:Q,K20+6,11),"") -> 6487.3 | M20: 41105.2 | N20: =IFERROR(INDEX(البيانات!A:Q,K20+6,16),"") -> 5 | O20: 40
B21: 194505 | C21: =VLOOKUP(B21,البيانات!A:Q,1,FALSE) -> 194505 | D21: =VLOOKUP(B21,البيانات!A:Q,9,FALSE) -> 5 | K21: =IFERROR(MATCH(B21,البيانات!A:A,0),"") -> 125 | L21: =IFERROR(INDEX(البيانات!A:Q,K21+6,11),"") -> 5175.6 | M21: 41105.2 | N21: =IFERROR(INDEX(البيانات!A:Q,K21+6,16),"") -> 5 | O21: 40
B22: 1669294 | C22: =VLOOKUP(B22,البيانات!A:Q,1,FALSE) -> 1669294 | D22: =VLOOKUP(B22,البيانات!A:Q,9,FALSE) -> 5 | K22: =IFERROR(MATCH(B22,البيانات!A:A,0),"") -> 132 | L22: =IFERROR(INDEX(البيانات!A:Q,K22+6,11),"") -> 4325.4 | M22: 41105.2 | N22: =IFERROR(INDEX(البيانات!A:Q,K22+6,16),"") -> 5 | O22: 40
B23: 1046921 | C23: =VLOOKUP(B23,البيانات!A:Q,1,FALSE) -> 1046921 | D23: =VLOOKUP(B23,البيانات!A:Q,9,FALSE) -> 5 | K23: =IFERROR(MATCH(B23,البيانات!A:A,0),"") -> 139 | L23: =IFERROR(INDEX(البيانات!A:Q,K23+6,11),"") -> 334 | M23: 41105.2 | N23: =IFERROR(INDEX(البيانات!A:Q,K23+6,16),"") -> 0 | O23: 40
B24: 4492483 | C24: =VLOOKUP(B24,البيانات!A:Q,1,FALSE) -> 4492483 | D24: =VLOOKUP(B24,البيانات!A:Q,9,FALSE) -> 5 | K24: =IFERROR(MATCH(B24,البيانات!A:A,0),"") -> 144 | L24: =IFERROR(INDEX(البيانات!A:Q,K24+6,11),"") -> ج فاتوره | M24: 41105.2 | N24: =IFERROR(INDEX(البيانات!A:Q,K24+6,16),"") -> 0 | O24: 40
B25: 812451 | C25: =VLOOKUP(B25,البيانات!A:Q,1,FALSE) -> 812451 | D25: =VLOOKUP(B25,البيانات!A:Q,9,FALSE) -> 5 | K25: =IFERROR(MATCH(B25,البيانات!A:A,0),"") -> 150 | L25: =IFERROR(INDEX(البيانات!A:Q,K25+6,11),"") -> 5475.6 | M25: 41105.2 | N25: =IFERROR(INDEX(البيانات!A:Q,K25+6,16),"") -> 5 | O25: 40
B26: 850492 | C26: =VLOOKUP(B26,البيانات!A:Q,1,FALSE) -> 850492 | D26: =VLOOKUP(B26,البيانات!A:Q,9,FALSE) -> 5 | K26: =IFERROR(MATCH(B26,البيانات!A:A,0),"") -> 157 | L26: =IFERROR(INDEX(البيانات!A:Q,K26+6,11),"") -> 5727.3 | M26: 41105.2 | N26: =IFERROR(INDEX(البيانات!A:Q,K26+6,16),"") -> 5 | O26: 40
B27: 1817215 | C27: =VLOOKUP(B27,البيانات!A:Q,1,FALSE) -> 1817215 | D27: =VLOOKUP(B27,البيانات!A:Q,9,FALSE) -> 6 | K27: =IFERROR(MATCH(B27,البيانات!A:A,0),"") -> 164 | L27: =IFERROR(INDEX(البيانات!A:Q,K27+6,11),"") -> 723 | M27: 3840 | N27: =IFERROR(INDEX(البيانات!A:Q,K27+6,16),"") -> 0 | O27: 5
B28: 1103599 | C28: =VLOOKUP(B28,البيانات!A:Q,1,FALSE) -> 1103599 | D28: =VLOOKUP(B28,البيانات!A:Q,9,FALSE) -> 6 | K28: =IFERROR(MATCH(B28,البيانات!A:A,0),"") -> 169 | L28: =IFERROR(INDEX(البيانات!A:Q,K28+6,11),"") -> ج فاتوره | M28: 3840 | N28: =IFERROR(INDEX(البيانات!A:Q,K28+6,16),"") -> 0 | O28: 5
B29: 1668973 | C29: =VLOOKUP(B29,البيانات!A:Q,1,FALSE) -> 1668973 | D29: =VLOOKUP(B29,البيانات!A:Q,9,FALSE) -> 6 | K29: =IFERROR(MATCH(B29,البيانات!A:A,0),"") -> 175 | L29: =IFERROR(INDEX(البيانات!A:Q,K29+6,11),"") -> 3117 | M29: 3840 | N29: =IFERROR(INDEX(البيانات!A:Q,K29+6,16),"") -> 5 | O29: 5
C30: =VLOOKUP(B30,البيانات!A:Q,1,FALSE) ->  | D30: =VLOOKUP(B30,البيانات!A:Q,9,FALSE) ->  | K30: =IFERROR(MATCH(B30,البيانات!A:A,0),"") ->  | L30: =IFERROR(INDEX(البيانات!A:Q,K30+6,11),"") ->  | M30: 0 | N30: =IFERROR(INDEX(البيانات!A:Q,K30+6,16),"") ->  | O30: 0
C31: =VLOOKUP(B31,البيانات!A:Q,1,FALSE) ->  | D31: =VLOOKUP(B31,البيانات!A:Q,9,FALSE) ->  | K31: =IFERROR(MATCH(B31,البيانات!A:A,0),"") ->  | L31: =IFERROR(INDEX(البيانات!A:Q,K31+6,11),"") ->  | M31: 0 | N31: =IFERROR(INDEX(البيانات!A:Q,K31+6,16),"") ->  | O31: 0
C32: =VLOOKUP(B32,البيانات!A:Q,1,FALSE) ->  | D32: =VLOOKUP(B32,البيانات!A:Q,9,FALSE) ->  | K32: =IFERROR(MATCH(B32,البيانات!A:A,0),"") ->  | L32: =IFERROR(INDEX(البيانات!A:Q,K32+6,11),"") ->  | M32: 0 | N32: =IFERROR(INDEX(البيانات!A:Q,K32+6,16),"") ->  | O32: 0
C33: =VLOOKUP(B33,البيانات!A:Q,1,FALSE) ->  | D33: =VLOOKUP(B33,البيانات!A:Q,9,FALSE) ->  | K33: =IFERROR(MATCH(B33,البيانات!A:A,0),"") ->  | L33: =IFERROR(INDEX(البيانات!A:Q,K33+6,11),"") ->  | M33: 0 | N33: =IFERROR(INDEX(البيانات!A:Q,K33+6,16),"") ->  | O33: 0
C34: =VLOOKUP(B34,البيانات!A:Q,1,FALSE) ->  | D34: =VLOOKUP(B34,البيانات!A:Q,9,FALSE) ->  | K34: =IFERROR(MATCH(B34,البيانات!A:A,0),"") ->  | L34: =IFERROR(INDEX(البيانات!A:Q,K34+6,11),"") ->  | M34: 0 | N34: =IFERROR(INDEX(البيانات!A:Q,K34+6,16),"") ->  | O34: 0
C35: =VLOOKUP(B35,البيانات!A:Q,1,FALSE) ->  | D35: =VLOOKUP(B35,البيانات!A:Q,9,FALSE) ->  | K35: =IFERROR(MATCH(B35,البيانات!A:A,0),"") ->  | L35: =IFERROR(INDEX(البيانات!A:Q,K35+6,11),"") ->  | M35: 0 | N35: =IFERROR(INDEX(البيانات!A:Q,K35+6,16),"") ->  | O35: 0
C36: =VLOOKUP(B36,البيانات!A:Q,1,FALSE) ->  | D36: =VLOOKUP(B36,البيانات!A:Q,9,FALSE) ->  | K36: =IFERROR(MATCH(B36,البيانات!A:A,0),"") ->  | L36: =IFERROR(INDEX(البيانات!A:Q,K36+6,11),"") ->  | M36: 0 | N36: =IFERROR(INDEX(البيانات!A:Q,K36+6,16),"") ->  | O36: 0
C37: =VLOOKUP(B37,البيانات!A:Q,1,FALSE) ->  | D37: =VLOOKUP(B37,البيانات!A:Q,9,FALSE) ->  | K37: =IFERROR(MATCH(B37,البيانات!A:A,0),"") ->  | L37: =IFERROR(INDEX(البيانات!A:Q,K37+6,11),"") ->  | M37: 0 | N37: =IFERROR(INDEX(البيانات!A:Q,K37+6,16),"") ->  | O37: 0
C38: =VLOOKUP(B38,البيانات!A:Q,1,FALSE) ->  | D38: =VLOOKUP(B38,البيانات!A:Q,9,FALSE) ->  | K38: =IFERROR(MATCH(B38,البيانات!A:A,0),"") ->  | L38: =IFERROR(INDEX(البيانات!A:Q,K38+6,11),"") ->  | M38: 0 | N38: =IFERROR(INDEX(البيانات!A:Q,K38+6,16),"") ->  | O38: 0
C39: =VLOOKUP(B39,البيانات!A:Q,1,FALSE) ->  | D39: =VLOOKUP(B39,البيانات!A:Q,9,FALSE) ->  | K39: =IFERROR(MATCH(B39,البيانات!A:A,0),"") ->  | L39: =IFERROR(INDEX(البيانات!A:Q,K39+6,11),"") ->  | M39: 0 | N39: =IFERROR(INDEX(البيانات!A:Q,K39+6,16),"") ->  | O39: 0
C40: =VLOOKUP(B40,البيانات!A:Q,1,FALSE) ->  | D40: =VLOOKUP(B40,البيانات!A:Q,9,FALSE) ->  | K40: =IFERROR(MATCH(B40,البيانات!A:A,0),"") ->  | L40: =IFERROR(INDEX(البيانات!A:Q,K40+6,11),"") ->  | M40: 0 | N40: =IFERROR(INDEX(البيانات!A:Q,K40+6,16),"") ->  | O40: 0
C41: =VLOOKUP(B41,البيانات!A:Q,1,FALSE) ->  | D41: =VLOOKUP(B41,البيانات!A:Q,9,FALSE) ->  | K41: =IFERROR(MATCH(B41,البيانات!A:A,0),"") ->  | L41: =IFERROR(INDEX(البيانات!A:Q,K41+6,11),"") ->  | M41: 0 | N41: =IFERROR(INDEX(البيانات!A:Q,K41+6,16),"") ->  | O41: 0
C42: =VLOOKUP(B42,البيانات!A:Q,1,FALSE) ->  | D42: =VLOOKUP(B42,البيانات!A:Q,9,FALSE) ->  | K42: =IFERROR(MATCH(B42,البيانات!A:A,0),"") ->  | L42: =IFERROR(INDEX(البيانات!A:Q,K42+6,11),"") ->  | M42: 0 | N42: =IFERROR(INDEX(البيانات!A:Q,K42+6,16),"") ->  | O42: 0
C43: =VLOOKUP(B43,البيانات!A:Q,1,FALSE) ->  | D43: =VLOOKUP(B43,البيانات!A:Q,9,FALSE) ->  | K43: =IFERROR(MATCH(B43,البيانات!A:A,0),"") ->  | L43: =IFERROR(INDEX(البيانات!A:Q,K43+6,11),"") ->  | M43: 0 | N43: =IFERROR(INDEX(البيانات!A:Q,K43+6,16),"") ->  | O43: 0
C44: =VLOOKUP(B44,البيانات!A:Q,1,FALSE) ->  | D44: =VLOOKUP(B44,البيانات!A:Q,9,FALSE) ->  | K44: =IFERROR(MATCH(B44,البيانات!A:A,0),"") ->  | L44: =IFERROR(INDEX(البيانات!A:Q,K44+6,11),"") ->  | M44: 0 | N44: =IFERROR(INDEX(البيانات!A:Q,K44+6,16),"") ->  | O44: 0
C45: =VLOOKUP(B45,البيانات!A:Q,1,FALSE) ->  | D45: =VLOOKUP(B45,البيانات!A:Q,9,FALSE) ->  | K45: =IFERROR(MATCH(B45,البيانات!A:A,0),"") ->  | L45: =IFERROR(INDEX(البيانات!A:Q,K45+6,11),"") ->  | M45: 0 | N45: =IFERROR(INDEX(البيانات!A:Q,K45+6,16),"") ->  | O45: 0
C46: =VLOOKUP(B46,البيانات!A:Q,1,FALSE) ->  | D46: =VLOOKUP(B46,البيانات!A:Q,9,FALSE) ->  | K46: =IFERROR(MATCH(B46,البيانات!A:A,0),"") ->  | L46: =IFERROR(INDEX(البيانات!A:Q,K46+6,11),"") ->  | M46: 0 | N46: =IFERROR(INDEX(البيانات!A:Q,K46+6,16),"") ->  | O46: 0
C47: =VLOOKUP(B47,البيانات!A:Q,1,FALSE) ->  | D47: =VLOOKUP(B47,البيانات!A:Q,9,FALSE) ->  | K47: =IFERROR(MATCH(B47,البيانات!A:A,0),"") ->  | L47: =IFERROR(INDEX(البيانات!A:Q,K47+6,11),"") ->  | M47: 0 | N47: =IFERROR(INDEX(البيانات!A:Q,K47+6,16),"") ->  | O47: 0
C48: =VLOOKUP(B48,البيانات!A:Q,1,FALSE) ->  | D48: =VLOOKUP(B48,البيانات!A:Q,9,FALSE) ->  | K48: =IFERROR(MATCH(B48,البيانات!A:A,0),"") ->  | L48: =IFERROR(INDEX(البيانات!A:Q,K48+6,11),"") ->  | M48: 0 | N48: =IFERROR(INDEX(البيانات!A:Q,K48+6,16),"") ->  | O48: 0
C49: =VLOOKUP(B49,البيانات!A:Q,1,FALSE) ->  | D49: =VLOOKUP(B49,البيانات!A:Q,9,FALSE) ->  | K49: =IFERROR(MATCH(B49,البيانات!A:A,0),"") ->  | L49: =IFERROR(INDEX(البيانات!A:Q,K49+6,11),"") ->  | M49: 0 | N49: =IFERROR(INDEX(البيانات!A:Q,K49+6,16),"") ->  | O49: 0
C50: =VLOOKUP(B50,البيانات!A:Q,1,FALSE) ->  | D50: =VLOOKUP(B50,البيانات!A:Q,9,FALSE) ->  | K50: =IFERROR(MATCH(B50,البيانات!A:A,0),"") ->  | L50: =IFERROR(INDEX(البيانات!A:Q,K50+6,11),"") ->  | M50: 0 | N50: =IFERROR(INDEX(البيانات!A:Q,K50+6,16),"") ->  | O50: 0
C51: =VLOOKUP(B51,البيانات!A:Q,1,FALSE) ->  | D51: =VLOOKUP(B51,البيانات!A:Q,9,FALSE) ->  | K51: =IFERROR(MATCH(B51,البيانات!A:A,0),"") ->  | L51: =IFERROR(INDEX(البيانات!A:Q,K51+6,11),"") ->  | M51: 0 | N51: =IFERROR(INDEX(البيانات!A:Q,K51+6,16),"") ->  | O51: 0
C52: =VLOOKUP(B52,البيانات!A:Q,1,FALSE) ->  | D52: =VLOOKUP(B52,البيانات!A:Q,9,FALSE) ->  | K52: =IFERROR(MATCH(B52,البيانات!A:A,0),"") ->  | L52: =IFERROR(INDEX(البيانات!A:Q,K52+6,11),"") ->  | M52: 0 | N52: =IFERROR(INDEX(البيانات!A:Q,K52+6,16),"") ->  | O52: 0
C53: =VLOOKUP(B53,البيانات!A:Q,1,FALSE) ->  | D53: =VLOOKUP(B53,البيانات!A:Q,9,FALSE) ->  | K53: =IFERROR(MATCH(B53,البيانات!A:A,0),"") ->  | L53: =IFERROR(INDEX(البيانات!A:Q,K53+6,11),"") ->  | M53: 0 | N53: =IFERROR(INDEX(البيانات!A:Q,K53+6,16),"") ->  | O53: 0
C54: =VLOOKUP(B54,البيانات!A:Q,1,FALSE) ->  | D54: =VLOOKUP(B54,البيانات!A:Q,9,FALSE) ->  | K54: =IFERROR(MATCH(B54,البيانات!A:A,0),"") ->  | L54: =IFERROR(INDEX(البيانات!A:Q,K54+6,11),"") ->  | M54: 0 | N54: =IFERROR(INDEX(البيانات!A:Q,K54+6,16),"") ->  | O54: 0
C55: =VLOOKUP(B55,البيانات!A:Q,1,FALSE) ->  | D55: =VLOOKUP(B55,البيانات!A:Q,9,FALSE) ->  | K55: =IFERROR(MATCH(B55,البيانات!A:A,0),"") ->  | L55: =IFERROR(INDEX(البيانات!A:Q,K55+6,11),"") ->  | M55: 0 | N55: =IFERROR(INDEX(البيانات!A:Q,K55+6,16),"") ->  | O55: 0
C56: =VLOOKUP(B56,البيانات!A:Q,1,FALSE) ->  | D56: =VLOOKUP(B56,البيانات!A:Q,9,FALSE) ->  | K56: =IFERROR(MATCH(B56,البيانات!A:A,0),"") ->  | L56: =IFERROR(INDEX(البيانات!A:Q,K56+6,11),"") ->  | M56: 0 | N56: =IFERROR(INDEX(البيانات!A:Q,K56+6,16),"") ->  | O56: 0
C57: =VLOOKUP(B57,البيانات!A:Q,1,FALSE) ->  | D57: =VLOOKUP(B57,البيانات!A:Q,9,FALSE) ->  | K57: =IFERROR(MATCH(B57,البيانات!A:A,0),"") ->  | L57: =IFERROR(INDEX(البيانات!A:Q,K57+6,11),"") ->  | M57: 0 | N57: =IFERROR(INDEX(البيانات!A:Q,K57+6,16),"") ->  | O57: 0
C58: =VLOOKUP(B58,البيانات!A:Q,1,FALSE) ->  | D58: =VLOOKUP(B58,البيانات!A:Q,9,FALSE) ->  | K58: =IFERROR(MATCH(B58,البيانات!A:A,0),"") ->  | L58: =IFERROR(INDEX(البيانات!A:Q,K58+6,11),"") ->  | M58: 0 | N58: =IFERROR(INDEX(البيانات!A:Q,K58+6,16),"") ->  | O58: 0
C59: =VLOOKUP(B59,البيانات!A:Q,1,FALSE) ->  | D59: =VLOOKUP(B59,البيانات!A:Q,9,FALSE) ->  | K59: =IFERROR(MATCH(B59,البيانات!A:A,0),"") ->  | L59: =IFERROR(INDEX(البيانات!A:Q,K59+6,11),"") ->  | M59: 0 | N59: =IFERROR(INDEX(البيانات!A:Q,K59+6,16),"") ->  | O59: 0
C60: =VLOOKUP(B60,البيانات!A:Q,1,FALSE) ->  | D60: =VLOOKUP(B60,البيانات!A:Q,9,FALSE) ->  | K60: =IFERROR(MATCH(B60,البيانات!A:A,0),"") ->  | L60: =IFERROR(INDEX(البيانات!A:Q,K60+6,11),"") ->  | M60: 0 | N60: =IFERROR(INDEX(البيانات!A:Q,K60+6,16),"") ->  | O60: 0
C61: =VLOOKUP(B61,البيانات!A:Q,1,FALSE) ->  | D61: =VLOOKUP(B61,البيانات!A:Q,9,FALSE) ->  | K61: =IFERROR(MATCH(B61,البيانات!A:A,0),"") ->  | L61: =IFERROR(INDEX(البيانات!A:Q,K61+6,11),"") ->  | M61: 0 | N61: =IFERROR(INDEX(البيانات!A:Q,K61+6,16),"") ->  | O61: 0
C62: =VLOOKUP(B62,البيانات!A:Q,1,FALSE) ->  | D62: =VLOOKUP(B62,البيانات!A:Q,9,FALSE) ->  | K62: =IFERROR(MATCH(B62,البيانات!A:A,0),"") ->  | L62: =IFERROR(INDEX(البيانات!A:Q,K62+6,11),"") ->  | M62: 0 | N62: =IFERROR(INDEX(البيانات!A:Q,K62+6,16),"") ->  | O62: 0
C63: =VLOOKUP(B63,البيانات!A:Q,1,FALSE) ->  | D63: =VLOOKUP(B63,البيانات!A:Q,9,FALSE) ->  | K63: =IFERROR(MATCH(B63,البيانات!A:A,0),"") ->  | L63: =IFERROR(INDEX(البيانات!A:Q,K63+6,11),"") ->  | M63: 0 | N63: =IFERROR(INDEX(البيانات!A:Q,K63+6,16),"") ->  | O63: 0
C64: =VLOOKUP(B64,البيانات!A:Q,1,FALSE) ->  | D64: =VLOOKUP(B64,البيانات!A:Q,9,FALSE) ->  | K64: =IFERROR(MATCH(B64,البيانات!A:A,0),"") ->  | L64: =IFERROR(INDEX(البيانات!A:Q,K64+6,11),"") ->  | M64: 0 | N64: =IFERROR(INDEX(البيانات!A:Q,K64+6,16),"") ->  | O64: 0
C65: =VLOOKUP(B65,البيانات!A:Q,1,FALSE) ->  | D65: =VLOOKUP(B65,البيانات!A:Q,9,FALSE) ->  | K65: =IFERROR(MATCH(B65,البيانات!A:A,0),"") ->  | L65: =IFERROR(INDEX(البيانات!A:Q,K65+6,11),"") ->  | M65: 0 | N65: =IFERROR(INDEX(البيانات!A:Q,K65+6,16),"") ->  | O65: 0
C66: =VLOOKUP(B66,البيانات!A:Q,1,FALSE) ->  | D66: =VLOOKUP(B66,البيانات!A:Q,9,FALSE) ->  | K66: =IFERROR(MATCH(B66,البيانات!A:A,0),"") ->  | L66: =IFERROR(INDEX(البيانات!A:Q,K66+6,11),"") ->  | M66: =IFERROR(SUMIF($D:$D,$D:$D,$L:$L),"") -> 0 | N66: =IFERROR(INDEX(البيانات!A:Q,K66+6,16),"") ->  | O66: =SUMIF($D:$D,$D:$D,$N:$N) -> 0
C67: =VLOOKUP(B67,البيانات!A:Q,1,FALSE) ->  | D67: =VLOOKUP(B67,البيانات!A:Q,9,FALSE) ->  | K67: =IFERROR(MATCH(B67,البيانات!A:A,0),"") ->  | L67: =IFERROR(INDEX(البيانات!A:Q,K67+6,11),"") ->  | M67: 0 | N67: =IFERROR(INDEX(البيانات!A:Q,K67+6,16),"") ->  | O67: 0
C68: =VLOOKUP(B68,البيانات!A:Q,1,FALSE) ->  | D68: =VLOOKUP(B68,البيانات!A:Q,9,FALSE) ->  | K68: =IFERROR(MATCH(B68,البيانات!A:A,0),"") ->  | L68: =IFERROR(INDEX(البيانات!A:Q,K68+6,11),"") ->  | M68: 0 | N68: =IFERROR(INDEX(البيانات!A:Q,K68+6,16),"") ->  | O68: 0
C69: =VLOOKUP(B69,البيانات!A:Q,1,FALSE) ->  | D69: =VLOOKUP(B69,البيانات!A:Q,9,FALSE) ->  | K69: =IFERROR(MATCH(B69,البيانات!A:A,0),"") ->  | L69: =IFERROR(INDEX(البيانات!A:Q,K69+6,11),"") ->  | M69: 0 | N69: =IFERROR(INDEX(البيانات!A:Q,K69+6,16),"") ->  | O69: 0
C70: =VLOOKUP(B70,البيانات!A:Q,1,FALSE) ->  | D70: =VLOOKUP(B70,البيانات!A:Q,9,FALSE) ->  | K70: =IFERROR(MATCH(B70,البيانات!A:A,0),"") ->  | L70: =IFERROR(INDEX(البيانات!A:Q,K70+6,11),"") ->  | M70: 0 | N70: =IFERROR(INDEX(البيانات!A:Q,K70+6,16),"") ->  | O70: 0
C71: =VLOOKUP(B71,البيانات!A:Q,1,FALSE) ->  | D71: =VLOOKUP(B71,البيانات!A:Q,9,FALSE) ->  | K71: =IFERROR(MATCH(B71,البيانات!A:A,0),"") ->  | L71: =IFERROR(INDEX(البيانات!A:Q,K71+6,11),"") ->  | M71: 0 | N71: =IFERROR(INDEX(البيانات!A:Q,K71+6,16),"") ->  | O71: 0
C72: =VLOOKUP(B72,البيانات!A:Q,1,FALSE) ->  | D72: =VLOOKUP(B72,البيانات!A:Q,9,FALSE) ->  | K72: =IFERROR(MATCH(B72,البيانات!A:A,0),"") ->  | L72: =IFERROR(INDEX(البيانات!A:Q,K72+6,11),"") ->  | M72: 0 | N72: =IFERROR(INDEX(البيانات!A:Q,K72+6,16),"") ->  | O72: 0
C73: =VLOOKUP(B73,البيانات!A:Q,1,FALSE) ->  | D73: =VLOOKUP(B73,البيانات!A:Q,9,FALSE) ->  | K73: =IFERROR(MATCH(B73,البيانات!A:A,0),"") ->  | L73: =IFERROR(INDEX(البيانات!A:Q,K73+6,11),"") ->  | M73: 0 | N73: =IFERROR(INDEX(البيانات!A:Q,K73+6,16),"") ->  | O73: 0
C74: =VLOOKUP(B74,البيانات!A:Q,1,FALSE) ->  | D74: =VLOOKUP(B74,البيانات!A:Q,9,FALSE) ->  | K74: =IFERROR(MATCH(B74,البيانات!A:A,0),"") ->  | L74: =IFERROR(INDEX(البيانات!A:Q,K74+6,11),"") ->  | M74: 0 | N74: =IFERROR(INDEX(البيانات!A:Q,K74+6,16),"") ->  | O74: 0
C75: =VLOOKUP(B75,البيانات!A:Q,1,FALSE) ->  | D75: =VLOOKUP(B75,البيانات!A:Q,9,FALSE) ->  | K75: =IFERROR(MATCH(B75,البيانات!A:A,0),"") ->  | L75: =IFERROR(INDEX(البيانات!A:Q,K75+6,11),"") ->  | M75: 0 | N75: =IFERROR(INDEX(البيانات!A:Q,K75+6,16),"") ->  | O75: 0
C76: =VLOOKUP(B76,البيانات!A:Q,1,FALSE) ->  | D76: =VLOOKUP(B76,البيانات!A:Q,9,FALSE) ->  | K76: =IFERROR(MATCH(B76,البيانات!A:A,0),"") ->  | L76: =IFERROR(INDEX(البيانات!A:Q,K76+6,11),"") ->  | M76: 0 | N76: =IFERROR(INDEX(البيانات!A:Q,K76+6,16),"") ->  | O76: 0
C77: =VLOOKUP(B77,البيانات!A:Q,1,FALSE) ->  | D77: =VLOOKUP(B77,البيانات!A:Q,9,FALSE) ->  | K77: =IFERROR(MATCH(B77,البيانات!A:A,0),"") ->  | L77: =IFERROR(INDEX(البيانات!A:Q,K77+6,11),"") ->  | M77: 0 | N77: =IFERROR(INDEX(البيانات!A:Q,K77+6,16),"") ->  | O77: 0
C78: =VLOOKUP(B78,البيانات!A:Q,1,FALSE) ->  | D78: =VLOOKUP(B78,البيانات!A:Q,9,FALSE) ->  | K78: =IFERROR(MATCH(B78,البيانات!A:A,0),"") ->  | L78: =IFERROR(INDEX(البيانات!A:Q,K78+6,11),"") ->  | M78: 0 | N78: =IFERROR(INDEX(البيانات!A:Q,K78+6,16),"") ->  | O78: 0
C79: =VLOOKUP(B79,البيانات!A:Q,1,FALSE) ->  | D79: =VLOOKUP(B79,البيانات!A:Q,9,FALSE) ->  | K79: =IFERROR(MATCH(B79,البيانات!A:A,0),"") ->  | L79: =IFERROR(INDEX(البيانات!A:Q,K79+6,11),"") ->  | M79: 0 | N79: =IFERROR(INDEX(البيانات!A:Q,K79+6,16),"") ->  | O79: 0
C80: =VLOOKUP(B80,البيانات!A:Q,1,FALSE) ->  | D80: =VLOOKUP(B80,البيانات!A:Q,9,FALSE) ->  | K80: =IFERROR(MATCH(B80,البيانات!A:A,0),"") ->  | L80: =IFERROR(INDEX(البيانات!A:Q,K80+6,11),"") ->  | M80: 0 | N80: =IFERROR(INDEX(البيانات!A:Q,K80+6,16),"") ->  | O80: 0
C81: =VLOOKUP(B81,البيانات!A:Q,1,FALSE) ->  | D81: =VLOOKUP(B81,البيانات!A:Q,9,FALSE) ->  | K81: =IFERROR(MATCH(B81,البيانات!A:A,0),"") ->  | L81: =IFERROR(INDEX(البيانات!A:Q,K81+6,11),"") ->  | M81: 0 | N81: =IFERROR(INDEX(البيانات!A:Q,K81+6,16),"") ->  | O81: 0
C82: =VLOOKUP(B82,البيانات!A:Q,1,FALSE) ->  | D82: =VLOOKUP(B82,البيانات!A:Q,9,FALSE) ->  | K82: =IFERROR(MATCH(B82,البيانات!A:A,0),"") ->  | L82: =IFERROR(INDEX(البيانات!A:Q,K82+6,11),"") ->  | M82: 0 | N82: =IFERROR(INDEX(البيانات!A:Q,K82+6,16),"") ->  | O82: 0
C83: =VLOOKUP(B83,البيانات!A:Q,1,FALSE) ->  | D83: =VLOOKUP(B83,البيانات!A:Q,9,FALSE) ->  | K83: =IFERROR(MATCH(B83,البيانات!A:A,0),"") ->  | L83: =IFERROR(INDEX(البيانات!A:Q,K83+6,11),"") ->  | M83: 0 | N83: =IFERROR(INDEX(البيانات!A:Q,K83+6,16),"") ->  | O83: 0
C84: =VLOOKUP(B84,البيانات!A:Q,1,FALSE) ->  | D84: =VLOOKUP(B84,البيانات!A:Q,9,FALSE) ->  | K84: =IFERROR(MATCH(B84,البيانات!A:A,0),"") ->  | L84: =IFERROR(INDEX(البيانات!A:Q,K84+6,11),"") ->  | M84: 0 | N84: =IFERROR(INDEX(البيانات!A:Q,K84+6,16),"") ->  | O84: 0
C85: =VLOOKUP(B85,البيانات!A:Q,1,FALSE) ->  | D85: =VLOOKUP(B85,البيانات!A:Q,9,FALSE) ->  | K85: =IFERROR(MATCH(B85,البيانات!A:A,0),"") ->  | L85: =IFERROR(INDEX(البيانات!A:Q,K85+6,11),"") ->  | M85: 0 | N85: =IFERROR(INDEX(البيانات!A:Q,K85+6,16),"") ->  | O85: 0
C86: =VLOOKUP(B86,البيانات!A:Q,1,FALSE) ->  | D86: =VLOOKUP(B86,البيانات!A:Q,9,FALSE) ->  | K86: =IFERROR(MATCH(B86,البيانات!A:A,0),"") ->  | L86: =IFERROR(INDEX(البيانات!A:Q,K86+6,11),"") ->  | M86: 0 | N86: =IFERROR(INDEX(البيانات!A:Q,K86+6,16),"") ->  | O86: 0
C87: =VLOOKUP(B87,البيانات!A:Q,1,FALSE) ->  | D87: =VLOOKUP(B87,البيانات!A:Q,9,FALSE) ->  | K87: =IFERROR(MATCH(B87,البيانات!A:A,0),"") ->  | L87: =IFERROR(INDEX(البيانات!A:Q,K87+6,11),"") ->  | M87: 0 | N87: =IFERROR(INDEX(البيانات!A:Q,K87+6,16),"") ->  | O87: 0
C88: =VLOOKUP(B88,البيانات!A:Q,1,FALSE) ->  | D88: =VLOOKUP(B88,البيانات!A:Q,9,FALSE) ->  | K88: =IFERROR(MATCH(B88,البيانات!A:A,0),"") ->  | L88: =IFERROR(INDEX(البيانات!A:Q,K88+6,11),"") ->  | M88: 0 | N88: =IFERROR(INDEX(البيانات!A:Q,K88+6,16),"") ->  | O88: 0
C89: =VLOOKUP(B89,البيانات!A:Q,1,FALSE) ->  | D89: =VLOOKUP(B89,البيانات!A:Q,9,FALSE) ->  | K89: =IFERROR(MATCH(B89,البيانات!A:A,0),"") ->  | L89: =IFERROR(INDEX(البيانات!A:Q,K89+6,11),"") ->  | M89: 0 | N89: =IFERROR(INDEX(البيانات!A:Q,K89+6,16),"") ->  | O89: 0
C90: =VLOOKUP(B90,البيانات!A:Q,1,FALSE) ->  | D90: =VLOOKUP(B90,البيانات!A:Q,9,FALSE) ->  | K90: =IFERROR(MATCH(B90,البيانات!A:A,0),"") ->  | L90: =IFERROR(INDEX(البيانات!A:Q,K90+6,11),"") ->  | M90: 0 | N90: =IFERROR(INDEX(البيانات!A:Q,K90+6,16),"") ->  | O90: 0
C91: =VLOOKUP(B91,البيانات!A:Q,1,FALSE) ->  | D91: =VLOOKUP(B91,البيانات!A:Q,9,FALSE) ->  | K91: =IFERROR(MATCH(B91,البيانات!A:A,0),"") ->  | L91: =IFERROR(INDEX(البيانات!A:Q,K91+6,11),"") ->  | M91: 0 | N91: =IFERROR(INDEX(البيانات!A:Q,K91+6,16),"") ->  | O91: 0
C92: =VLOOKUP(B92,البيانات!A:Q,1,FALSE) ->  | D92: =VLOOKUP(B92,البيانات!A:Q,9,FALSE) ->  | K92: =IFERROR(MATCH(B92,البيانات!A:A,0),"") ->  | L92: =IFERROR(INDEX(البيانات!A:Q,K92+6,11),"") ->  | M92: 0 | N92: =IFERROR(INDEX(البيانات!A:Q,K92+6,16),"") ->  | O92: 0
C93: =VLOOKUP(B93,البيانات!A:Q,1,FALSE) ->  | D93: =VLOOKUP(B93,البيانات!A:Q,9,FALSE) ->  | K93: =IFERROR(MATCH(B93,البيانات!A:A,0),"") ->  | L93: =IFERROR(INDEX(البيانات!A:Q,K93+6,11),"") ->  | M93: 0 | N93: =IFERROR(INDEX(البيانات!A:Q,K93+6,16),"") ->  | O93: 0
C94: =VLOOKUP(B94,البيانات!A:Q,1,FALSE) ->  | D94: =VLOOKUP(B94,البيانات!A:Q,9,FALSE) ->  | K94: =IFERROR(MATCH(B94,البيانات!A:A,0),"") ->  | L94: =IFERROR(INDEX(البيانات!A:Q,K94+6,11),"") ->  | M94: 0 | N94: =IFERROR(INDEX(البيانات!A:Q,K94+6,16),"") ->  | O94: 0
C95: =VLOOKUP(B95,البيانات!A:Q,1,FALSE) ->  | D95: =VLOOKUP(B95,البيانات!A:Q,9,FALSE) ->  | K95: =IFERROR(MATCH(B95,البيانات!A:A,0),"") ->  | L95: =IFERROR(INDEX(البيانات!A:Q,K95+6,11),"") ->  | M95: 0 | N95: =IFERROR(INDEX(البيانات!A:Q,K95+6,16),"") ->  | O95: 0
C96: =VLOOKUP(B96,البيانات!A:Q,1,FALSE) ->  | D96: =VLOOKUP(B96,البيانات!A:Q,9,FALSE) ->  | K96: =IFERROR(MATCH(B96,البيانات!A:A,0),"") ->  | L96: =IFERROR(INDEX(البيانات!A:Q,K96+6,11),"") ->  | M96: 0 | N96: =IFERROR(INDEX(البيانات!A:Q,K96+6,16),"") ->  | O96: 0
C97: =VLOOKUP(B97,البيانات!A:Q,1,FALSE) ->  | D97: =VLOOKUP(B97,البيانات!A:Q,9,FALSE) ->  | K97: =IFERROR(MATCH(B97,البيانات!A:A,0),"") ->  | L97: =IFERROR(INDEX(البيانات!A:Q,K97+6,11),"") ->  | M97: 0 | N97: =IFERROR(INDEX(البيانات!A:Q,K97+6,16),"") ->  | O97: 0
C98: =VLOOKUP(B98,البيانات!A:Q,1,FALSE) ->  | D98: =VLOOKUP(B98,البيانات!A:Q,9,FALSE) ->  | K98: =IFERROR(MATCH(B98,البيانات!A:A,0),"") ->  | L98: =IFERROR(INDEX(البيانات!A:Q,K98+6,11),"") ->  | M98: 0 | N98: =IFERROR(INDEX(البيانات!A:Q,K98+6,16),"") ->  | O98: 0
C99: =VLOOKUP(B99,البيانات!A:Q,1,FALSE) ->  | D99: =VLOOKUP(B99,البيانات!A:Q,9,FALSE) ->  | K99: =IFERROR(MATCH(B99,البيانات!A:A,0),"") ->  | L99: =IFERROR(INDEX(البيانات!A:Q,K99+6,11),"") ->  | M99: 0 | N99: =IFERROR(INDEX(البيانات!A:Q,K99+6,16),"") ->  | O99: 0
C100: =VLOOKUP(B100,البيانات!A:Q,1,FALSE) ->  | D100: =VLOOKUP(B100,البيانات!A:Q,9,FALSE) ->  | K100: =IFERROR(MATCH(B100,البيانات!A:A,0),"") ->  | L100: =IFERROR(INDEX(البيانات!A:Q,K100+6,11),"") ->  | M100: 0 | N100: =IFERROR(INDEX(البيانات!A:Q,K100+6,16),"") ->  | O100: 0
C101: =VLOOKUP(B101,البيانات!A:Q,1,FALSE) ->  | D101: =VLOOKUP(B101,البيانات!A:Q,9,FALSE) ->  | K101: =IFERROR(MATCH(B101,البيانات!A:A,0),"") ->  | L101: =IFERROR(INDEX(البيانات!A:Q,K101+6,11),"") ->  | M101: 0 | N101: =IFERROR(INDEX(البيانات!A:Q,K101+6,16),"") ->  | O101: 0
C102: =VLOOKUP(B102,البيانات!A:Q,1,FALSE) ->  | D102: =VLOOKUP(B102,البيانات!A:Q,9,FALSE) ->  | K102: =IFERROR(MATCH(B102,البيانات!A:A,0),"") ->  | L102: =IFERROR(INDEX(البيانات!A:Q,K102+6,11),"") ->  | M102: 0 | N102: =IFERROR(INDEX(البيانات!A:Q,K102+6,16),"") ->  | O102: 0
C103: =VLOOKUP(B103,البيانات!A:Q,1,FALSE) ->  | D103: =VLOOKUP(B103,البيانات!A:Q,9,FALSE) ->  | K103: =IFERROR(MATCH(B103,البيانات!A:A,0),"") ->  | L103: =IFERROR(INDEX(البيانات!A:Q,K103+6,11),"") ->  | M103: 0 | N103: =IFERROR(INDEX(البيانات!A:Q,K103+6,16),"") ->  | O103: 0
C104: =VLOOKUP(B104,البيانات!A:Q,1,FALSE) ->  | D104: =VLOOKUP(B104,البيانات!A:Q,9,FALSE) ->  | K104: =IFERROR(MATCH(B104,البيانات!A:A,0),"") ->  | L104: =IFERROR(INDEX(البيانات!A:Q,K104+6,11),"") ->  | M104: 0 | N104: =IFERROR(INDEX(البيانات!A:Q,K104+6,16),"") ->  | O104: 0
C105: =VLOOKUP(B105,البيانات!A:Q,1,FALSE) ->  | D105: =VLOOKUP(B105,البيانات!A:Q,9,FALSE) ->  | K105: =IFERROR(MATCH(B105,البيانات!A:A,0),"") ->  | L105: =IFERROR(INDEX(البيانات!A:Q,K105+6,11),"") ->  | M105: 0 | N105: =IFERROR(INDEX(البيانات!A:Q,K105+6,16),"") ->  | O105: 0
C106: =VLOOKUP(B106,البيانات!A:Q,1,FALSE) ->  | D106: =VLOOKUP(B106,البيانات!A:Q,9,FALSE) ->  | K106: =IFERROR(MATCH(B106,البيانات!A:A,0),"") ->  | L106: =IFERROR(INDEX(البيانات!A:Q,K106+6,11),"") ->  | M106: 0 | N106: =IFERROR(INDEX(البيانات!A:Q,K106+6,16),"") ->  | O106: 0
C107: =VLOOKUP(B107,البيانات!A:Q,1,FALSE) ->  | D107: =VLOOKUP(B107,البيانات!A:Q,9,FALSE) ->  | K107: =IFERROR(MATCH(B107,البيانات!A:A,0),"") ->  | L107: =IFERROR(INDEX(البيانات!A:Q,K107+6,11),"") ->  | M107: 0 | N107: =IFERROR(INDEX(البيانات!A:Q,K107+6,16),"") ->  | O107: 0
C108: =VLOOKUP(B108,البيانات!A:Q,1,FALSE) ->  | D108: =VLOOKUP(B108,البيانات!A:Q,9,FALSE) ->  | K108: =IFERROR(MATCH(B108,البيانات!A:A,0),"") ->  | L108: =IFERROR(INDEX(البيانات!A:Q,K108+6,11),"") ->  | M108: 0 | N108: =IFERROR(INDEX(البيانات!A:Q,K108+6,16),"") ->  | O108: 0
C109: =VLOOKUP(B109,البيانات!A:Q,1,FALSE) ->  | D109: =VLOOKUP(B109,البيانات!A:Q,9,FALSE) ->  | K109: =IFERROR(MATCH(B109,البيانات!A:A,0),"") ->  | L109: =IFERROR(INDEX(البيانات!A:Q,K109+6,11),"") ->  | M109: 0 | N109: =IFERROR(INDEX(البيانات!A:Q,K109+6,16),"") ->  | O109: 0
C110: =VLOOKUP(B110,البيانات!A:Q,1,FALSE) ->  | D110: =VLOOKUP(B110,البيانات!A:Q,9,FALSE) ->  | K110: =IFERROR(MATCH(B110,البيانات!A:A,0),"") ->  | L110: =IFERROR(INDEX(البيانات!A:Q,K110+6,11),"") ->  | M110: 0 | N110: =IFERROR(INDEX(البيانات!A:Q,K110+6,16),"") ->  | O110: 0
C111: =VLOOKUP(B111,البيانات!A:Q,1,FALSE) ->  | D111: =VLOOKUP(B111,البيانات!A:Q,9,FALSE) ->  | K111: =IFERROR(MATCH(B111,البيانات!A:A,0),"") ->  | L111: =IFERROR(INDEX(البيانات!A:Q,K111+6,11),"") ->  | M111: 0 | N111: =IFERROR(INDEX(البيانات!A:Q,K111+6,16),"") ->  | O111: 0
C112: =VLOOKUP(B112,البيانات!A:Q,1,FALSE) ->  | D112: =VLOOKUP(B112,البيانات!A:Q,9,FALSE) ->  | K112: =IFERROR(MATCH(B112,البيانات!A:A,0),"") ->  | L112: =IFERROR(INDEX(البيانات!A:Q,K112+6,11),"") ->  | M112: 0 | N112: =IFERROR(INDEX(البيانات!A:Q,K112+6,16),"") ->  | O112: 0
C113: =VLOOKUP(B113,البيانات!A:Q,1,FALSE) ->  | D113: =VLOOKUP(B113,البيانات!A:Q,9,FALSE) ->  | K113: =IFERROR(MATCH(B113,البيانات!A:A,0),"") ->  | L113: =IFERROR(INDEX(البيانات!A:Q,K113+6,11),"") ->  | M113: 0 | N113: =IFERROR(INDEX(البيانات!A:Q,K113+6,16),"") ->  | O113: 0
C114: =VLOOKUP(B114,البيانات!A:Q,1,FALSE) ->  | D114: =VLOOKUP(B114,البيانات!A:Q,9,FALSE) ->  | K114: =IFERROR(MATCH(B114,البيانات!A:A,0),"") ->  | L114: =IFERROR(INDEX(البيانات!A:Q,K114+6,11),"") ->  | M114: 0 | N114: =IFERROR(INDEX(البيانات!A:Q,K114+6,16),"") ->  | O114: 0
C115: =VLOOKUP(B115,البيانات!A:Q,1,FALSE) ->  | D115: =VLOOKUP(B115,البيانات!A:Q,9,FALSE) ->  | K115: =IFERROR(MATCH(B115,البيانات!A:A,0),"") ->  | L115: =IFERROR(INDEX(البيانات!A:Q,K115+6,11),"") ->  | M115: 0 | N115: =IFERROR(INDEX(البيانات!A:Q,K115+6,16),"") ->  | O115: 0
C116: =VLOOKUP(B116,البيانات!A:Q,1,FALSE) ->  | D116: =VLOOKUP(B116,البيانات!A:Q,9,FALSE) ->  | K116: =IFERROR(MATCH(B116,البيانات!A:A,0),"") ->  | L116: =IFERROR(INDEX(البيانات!A:Q,K116+6,11),"") ->  | M116: 0 | N116: =IFERROR(INDEX(البيانات!A:Q,K116+6,16),"") ->  | O116: 0
C117: =VLOOKUP(B117,البيانات!A:Q,1,FALSE) ->  | D117: =VLOOKUP(B117,البيانات!A:Q,9,FALSE) ->  | K117: =IFERROR(MATCH(B117,البيانات!A:A,0),"") ->  | L117: =IFERROR(INDEX(البيانات!A:Q,K117+6,11),"") ->  | M117: 0 | N117: =IFERROR(INDEX(البيانات!A:Q,K117+6,16),"") ->  | O117: 0
C118: =VLOOKUP(B118,البيانات!A:Q,1,FALSE) ->  | D118: =VLOOKUP(B118,البيانات!A:Q,9,FALSE) ->  | K118: =IFERROR(MATCH(B118,البيانات!A:A,0),"") ->  | L118: =IFERROR(INDEX(البيانات!A:Q,K118+6,11),"") ->  | M118: 0 | N118: =IFERROR(INDEX(البيانات!A:Q,K118+6,16),"") ->  | O118: 0
C119: =VLOOKUP(B119,البيانات!A:Q,1,FALSE) ->  | D119: =VLOOKUP(B119,البيانات!A:Q,9,FALSE) ->  | K119: =IFERROR(MATCH(B119,البيانات!A:A,0),"") ->  | L119: =IFERROR(INDEX(البيانات!A:Q,K119+6,11),"") ->  | M119: 0 | N119: =IFERROR(INDEX(البيانات!A:Q,K119+6,16),"") ->  | O119: 0
C120: =VLOOKUP(B120,البيانات!A:Q,1,FALSE) ->  | D120: =VLOOKUP(B120,البيانات!A:Q,9,FALSE) ->  | K120: =IFERROR(MATCH(B120,البيانات!A:A,0),"") ->  | L120: =IFERROR(INDEX(البيانات!A:Q,K120+6,11),"") ->  | M120: 0 | N120: =IFERROR(INDEX(البيانات!A:Q,K120+6,16),"") ->  | O120: 0
C121: =VLOOKUP(B121,البيانات!A:Q,1,FALSE) ->  | D121: =VLOOKUP(B121,البيانات!A:Q,9,FALSE) ->  | K121: =IFERROR(MATCH(B121,البيانات!A:A,0),"") ->  | L121: =IFERROR(INDEX(البيانات!A:Q,K121+6,11),"") ->  | M121: 0 | N121: =IFERROR(INDEX(البيانات!A:Q,K121+6,16),"") ->  | O121: 0
C122: =VLOOKUP(B122,البيانات!A:Q,1,FALSE) ->  | D122: =VLOOKUP(B122,البيانات!A:Q,9,FALSE) ->  | K122: =IFERROR(MATCH(B122,البيانات!A:A,0),"") ->  | L122: =IFERROR(INDEX(البيانات!A:Q,K122+6,11),"") ->  | M122: 0 | N122: =IFERROR(INDEX(البيانات!A:Q,K122+6,16),"") ->  | O122: 0
C123: =VLOOKUP(B123,البيانات!A:Q,1,FALSE) ->  | D123: =VLOOKUP(B123,البيانات!A:Q,9,FALSE) ->  | K123: =IFERROR(MATCH(B123,البيانات!A:A,0),"") ->  | L123: =IFERROR(INDEX(البيانات!A:Q,K123+6,11),"") ->  | M123: 0 | N123: =IFERROR(INDEX(البيانات!A:Q,K123+6,16),"") ->  | O123: 0
C124: =VLOOKUP(B124,البيانات!A:Q,1,FALSE) ->  | D124: =VLOOKUP(B124,البيانات!A:Q,9,FALSE) ->  | K124: =IFERROR(MATCH(B124,البيانات!A:A,0),"") ->  | L124: =IFERROR(INDEX(البيانات!A:Q,K124+6,11),"") ->  | M124: 0 | N124: =IFERROR(INDEX(البيانات!A:Q,K124+6,16),"") ->  | O124: 0
C125: =VLOOKUP(B125,البيانات!A:Q,1,FALSE) ->  | D125: =VLOOKUP(B125,البيانات!A:Q,9,FALSE) ->  | K125: =IFERROR(MATCH(B125,البيانات!A:A,0),"") ->  | L125: =IFERROR(INDEX(البيانات!A:Q,K125+6,11),"") ->  | M125: 0 | N125: =IFERROR(INDEX(البيانات!A:Q,K125+6,16),"") ->  | O125: 0
C126: =VLOOKUP(B126,البيانات!A:Q,1,FALSE) ->  | D126: =VLOOKUP(B126,البيانات!A:Q,9,FALSE) ->  | K126: =IFERROR(MATCH(B126,البيانات!A:A,0),"") ->  | L126: =IFERROR(INDEX(البيانات!A:Q,K126+6,11),"") ->  | M126: 0 | N126: =IFERROR(INDEX(البيانات!A:Q,K126+6,16),"") ->  | O126: 0
C127: =VLOOKUP(B127,البيانات!A:Q,1,FALSE) ->  | D127: =VLOOKUP(B127,البيانات!A:Q,9,FALSE) ->  | K127: =IFERROR(MATCH(B127,البيانات!A:A,0),"") ->  | L127: =IFERROR(INDEX(البيانات!A:Q,K127+6,11),"") ->  | M127: 0 | N127: =IFERROR(INDEX(البيانات!A:Q,K127+6,16),"") ->  | O127: 0
C128: =VLOOKUP(B128,البيانات!A:Q,1,FALSE) ->  | D128: =VLOOKUP(B128,البيانات!A:Q,9,FALSE) ->  | K128: =IFERROR(MATCH(B128,البيانات!A:A,0),"") ->  | L128: =IFERROR(INDEX(البيانات!A:Q,K128+6,11),"") ->  | M128: 0 | N128: =IFERROR(INDEX(البيانات!A:Q,K128+6,16),"") ->  | O128: 0
C129: =VLOOKUP(B129,البيانات!A:Q,1,FALSE) ->  | D129: =VLOOKUP(B129,البيانات!A:Q,9,FALSE) ->  | K129: =IFERROR(MATCH(B129,البيانات!A:A,0),"") ->  | L129: =IFERROR(INDEX(البيانات!A:Q,K129+6,11),"") ->  | M129: 0 | N129: =IFERROR(INDEX(البيانات!A:Q,K129+6,16),"") ->  | O129: 0
C130: =VLOOKUP(B130,البيانات!A:Q,1,FALSE) ->  | D130: =VLOOKUP(B130,البيانات!A:Q,9,FALSE) ->  | K130: =IFERROR(MATCH(B130,البيانات!A:A,0),"") ->  | L130: =IFERROR(INDEX(البيانات!A:Q,K130+6,11),"") ->  | M130: =IFERROR(SUMIF($D:$D,$D:$D,$L:$L),"") -> 0 | N130: =IFERROR(INDEX(البيانات!A:Q,K130+6,16),"") ->  | O130: =SUMIF($D:$D,$D:$D,$N:$N) -> 0
C131: =VLOOKUP(B131,البيانات!A:Q,1,FALSE) ->  | D131: =VLOOKUP(B131,البيانات!A:Q,9,FALSE) ->  | K131: =IFERROR(MATCH(B131,البيانات!A:A,0),"") ->  | L131: =IFERROR(INDEX(البيانات!A:Q,K131+6,11),"") ->  | M131: 0 | N131: =IFERROR(INDEX(البيانات!A:Q,K131+6,16),"") ->  | O131: 0
C132: =VLOOKUP(B132,البيانات!A:Q,1,FALSE) ->  | D132: =VLOOKUP(B132,البيانات!A:Q,9,FALSE) ->  | K132: =IFERROR(MATCH(B132,البيانات!A:A,0),"") ->  | L132: =IFERROR(INDEX(البيانات!A:Q,K132+6,11),"") ->  | M132: 0 | N132: =IFERROR(INDEX(البيانات!A:Q,K132+6,16),"") ->  | O132: 0
C133: =VLOOKUP(B133,البيانات!A:Q,1,FALSE) ->  | D133: =VLOOKUP(B133,البيانات!A:Q,9,FALSE) ->  | K133: =IFERROR(MATCH(B133,البيانات!A:A,0),"") ->  | L133: =IFERROR(INDEX(البيانات!A:Q,K133+6,11),"") ->  | M133: 0 | N133: =IFERROR(INDEX(البيانات!A:Q,K133+6,16),"") ->  | O133: 0
C134: =VLOOKUP(B134,البيانات!A:Q,1,FALSE) ->  | D134: =VLOOKUP(B134,البيانات!A:Q,9,FALSE) ->  | K134: =IFERROR(MATCH(B134,البيانات!A:A,0),"") ->  | L134: =IFERROR(INDEX(البيانات!A:Q,K134+6,11),"") ->  | M134: 0 | N134: =IFERROR(INDEX(البيانات!A:Q,K134+6,16),"") ->  | O134: 0
C135: =VLOOKUP(B135,البيانات!A:Q,1,FALSE) ->  | D135: =VLOOKUP(B135,البيانات!A:Q,9,FALSE) ->  | K135: =IFERROR(MATCH(B135,البيانات!A:A,0),"") ->  | L135: =IFERROR(INDEX(البيانات!A:Q,K135+6,11),"") ->  | M135: 0 | N135: =IFERROR(INDEX(البيانات!A:Q,K135+6,16),"") ->  | O135: 0
C136: =VLOOKUP(B136,البيانات!A:Q,1,FALSE) ->  | D136: =VLOOKUP(B136,البيانات!A:Q,9,FALSE) ->  | K136: =IFERROR(MATCH(B136,البيانات!A:A,0),"") ->  | L136: =IFERROR(INDEX(البيانات!A:Q,K136+6,11),"") ->  | M136: 0 | N136: =IFERROR(INDEX(البيانات!A:Q,K136+6,16),"") ->  | O136: 0
C137: =VLOOKUP(B137,البيانات!A:Q,1,FALSE) ->  | D137: =VLOOKUP(B137,البيانات!A:Q,9,FALSE) ->  | K137: =IFERROR(MATCH(B137,البيانات!A:A,0),"") ->  | L137: =IFERROR(INDEX(البيانات!A:Q,K137+6,11),"") ->  | M137: 0 | N137: =IFERROR(INDEX(البيانات!A:Q,K137+6,16),"") ->  | O137: 0
C138: =VLOOKUP(B138,البيانات!A:Q,1,FALSE) ->  | D138: =VLOOKUP(B138,البيانات!A:Q,9,FALSE) ->  | K138: =IFERROR(MATCH(B138,البيانات!A:A,0),"") ->  | L138: =IFERROR(INDEX(البيانات!A:Q,K138+6,11),"") ->  | M138: 0 | N138: =IFERROR(INDEX(البيانات!A:Q,K138+6,16),"") ->  | O138: 0
C139: =VLOOKUP(B139,البيانات!A:Q,1,FALSE) ->  | D139: =VLOOKUP(B139,البيانات!A:Q,9,FALSE) ->  | K139: =IFERROR(MATCH(B139,البيانات!A:A,0),"") ->  | L139: =IFERROR(INDEX(البيانات!A:Q,K139+6,11),"") ->  | M139: 0 | N139: =IFERROR(INDEX(البيانات!A:Q,K139+6,16),"") ->  | O139: 0
C140: =VLOOKUP(B140,البيانات!A:Q,1,FALSE) ->  | D140: =VLOOKUP(B140,البيانات!A:Q,9,FALSE) ->  | K140: =IFERROR(MATCH(B140,البيانات!A:A,0),"") ->  | L140: =IFERROR(INDEX(البيانات!A:Q,K140+6,11),"") ->  | M140: 0 | N140: =IFERROR(INDEX(البيانات!A:Q,K140+6,16),"") ->  | O140: 0
C141: =VLOOKUP(B141,البيانات!A:Q,1,FALSE) ->  | D141: =VLOOKUP(B141,البيانات!A:Q,9,FALSE) ->  | K141: =IFERROR(MATCH(B141,البيانات!A:A,0),"") ->  | L141: =IFERROR(INDEX(البيانات!A:Q,K141+6,11),"") ->  | M141: 0 | N141: =IFERROR(INDEX(البيانات!A:Q,K141+6,16),"") ->  | O141: 0
C142: =VLOOKUP(B142,البيانات!A:Q,1,FALSE) ->  | D142: =VLOOKUP(B142,البيانات!A:Q,9,FALSE) ->  | K142: =IFERROR(MATCH(B142,البيانات!A:A,0),"") ->  | L142: =IFERROR(INDEX(البيانات!A:Q,K142+6,11),"") ->  | M142: 0 | N142: =IFERROR(INDEX(البيانات!A:Q,K142+6,16),"") ->  | O142: 0
C143: =VLOOKUP(B143,البيانات!A:Q,1,FALSE) ->  | D143: =VLOOKUP(B143,البيانات!A:Q,9,FALSE) ->  | K143: =IFERROR(MATCH(B143,البيانات!A:A,0),"") ->  | L143: =IFERROR(INDEX(البيانات!A:Q,K143+6,11),"") ->  | M143: 0 | N143: =IFERROR(INDEX(البيانات!A:Q,K143+6,16),"") ->  | O143: 0
C144: =VLOOKUP(B144,البيانات!A:Q,1,FALSE) ->  | D144: =VLOOKUP(B144,البيانات!A:Q,9,FALSE) ->  | K144: =IFERROR(MATCH(B144,البيانات!A:A,0),"") ->  | L144: =IFERROR(INDEX(البيانات!A:Q,K144+6,11),"") ->  | M144: 0 | N144: =IFERROR(INDEX(البيانات!A:Q,K144+6,16),"") ->  | O144: 0
C145: =VLOOKUP(B145,البيانات!A:Q,1,FALSE) ->  | D145: =VLOOKUP(B145,البيانات!A:Q,9,FALSE) ->  | K145: =IFERROR(MATCH(B145,البيانات!A:A,0),"") ->  | L145: =IFERROR(INDEX(البيانات!A:Q,K145+6,11),"") ->  | M145: 0 | N145: =IFERROR(INDEX(البيانات!A:Q,K145+6,16),"") ->  | O145: 0
C146: =VLOOKUP(B146,البيانات!A:Q,1,FALSE) ->  | D146: =VLOOKUP(B146,البيانات!A:Q,9,FALSE) ->  | K146: =IFERROR(MATCH(B146,البيانات!A:A,0),"") ->  | L146: =IFERROR(INDEX(البيانات!A:Q,K146+6,11),"") ->  | M146: 0 | N146: =IFERROR(INDEX(البيانات!A:Q,K146+6,16),"") ->  | O146: 0
C147: =VLOOKUP(B147,البيانات!A:Q,1,FALSE) ->  | D147: =VLOOKUP(B147,البيانات!A:Q,9,FALSE) ->  | K147: =IFERROR(MATCH(B147,البيانات!A:A,0),"") ->  | L147: =IFERROR(INDEX(البيانات!A:Q,K147+6,11),"") ->  | M147: 0 | N147: =IFERROR(INDEX(البيانات!A:Q,K147+6,16),"") ->  | O147: 0
C148: =VLOOKUP(B148,البيانات!A:Q,1,FALSE) ->  | D148: =VLOOKUP(B148,البيانات!A:Q,9,FALSE) ->  | K148: =IFERROR(MATCH(B148,البيانات!A:A,0),"") ->  | L148: =IFERROR(INDEX(البيانات!A:Q,K148+6,11),"") ->  | M148: 0 | N148: =IFERROR(INDEX(البيانات!A:Q,K148+6,16),"") ->  | O148: 0
C149: =VLOOKUP(B149,البيانات!A:Q,1,FALSE) ->  | D149: =VLOOKUP(B149,البيانات!A:Q,9,FALSE) ->  | K149: =IFERROR(MATCH(B149,البيانات!A:A,0),"") ->  | L149: =IFERROR(INDEX(البيانات!A:Q,K149+6,11),"") ->  | M149: 0 | N149: =IFERROR(INDEX(البيانات!A:Q,K149+6,16),"") ->  | O149: 0
C150: =VLOOKUP(B150,البيانات!A:Q,1,FALSE) ->  | D150: =VLOOKUP(B150,البيانات!A:Q,9,FALSE) ->  | K150: =IFERROR(MATCH(B150,البيانات!A:A,0),"") ->  | L150: =IFERROR(INDEX(البيانات!A:Q,K150+6,11),"") ->  | M150: 0 | N150: =IFERROR(INDEX(البيانات!A:Q,K150+6,16),"") ->  | O150: 0
C151: =VLOOKUP(B151,البيانات!A:Q,1,FALSE) ->  | D151: =VLOOKUP(B151,البيانات!A:Q,9,FALSE) ->  | K151: =IFERROR(MATCH(B151,البيانات!A:A,0),"") ->  | L151: =IFERROR(INDEX(البيانات!A:Q,K151+6,11),"") ->  | M151: 0 | N151: =IFERROR(INDEX(البيانات!A:Q,K151+6,16),"") ->  | O151: 0
C152: =VLOOKUP(B152,البيانات!A:Q,1,FALSE) ->  | D152: =VLOOKUP(B152,البيانات!A:Q,9,FALSE) ->  | K152: =IFERROR(MATCH(B152,البيانات!A:A,0),"") ->  | L152: =IFERROR(INDEX(البيانات!A:Q,K152+6,11),"") ->  | M152: 0 | N152: =IFERROR(INDEX(البيانات!A:Q,K152+6,16),"") ->  | O152: 0
C153: =VLOOKUP(B153,البيانات!A:Q,1,FALSE) ->  | D153: =VLOOKUP(B153,البيانات!A:Q,9,FALSE) ->  | K153: =IFERROR(MATCH(B153,البيانات!A:A,0),"") ->  | L153: =IFERROR(INDEX(البيانات!A:Q,K153+6,11),"") ->  | M153: 0 | N153: =IFERROR(INDEX(البيانات!A:Q,K153+6,16),"") ->  | O153: 0
C154: =VLOOKUP(B154,البيانات!A:Q,1,FALSE) ->  | D154: =VLOOKUP(B154,البيانات!A:Q,9,FALSE) ->  | K154: =IFERROR(MATCH(B154,البيانات!A:A,0),"") ->  | L154: =IFERROR(INDEX(البيانات!A:Q,K154+6,11),"") ->  | M154: 0 | N154: =IFERROR(INDEX(البيانات!A:Q,K154+6,16),"") ->  | O154: 0
C155: =VLOOKUP(B155,البيانات!A:Q,1,FALSE) ->  | D155: =VLOOKUP(B155,البيانات!A:Q,9,FALSE) ->  | K155: =IFERROR(MATCH(B155,البيانات!A:A,0),"") ->  | L155: =IFERROR(INDEX(البيانات!A:Q,K155+6,11),"") ->  | M155: 0 | N155: =IFERROR(INDEX(البيانات!A:Q,K155+6,16),"") ->  | O155: 0
C156: =VLOOKUP(B156,البيانات!A:Q,1,FALSE) ->  | D156: =VLOOKUP(B156,البيانات!A:Q,9,FALSE) ->  | K156: =IFERROR(MATCH(B156,البيانات!A:A,0),"") ->  | L156: =IFERROR(INDEX(البيانات!A:Q,K156+6,11),"") ->  | M156: 0 | N156: =IFERROR(INDEX(البيانات!A:Q,K156+6,16),"") ->  | O156: 0
C157: =VLOOKUP(B157,البيانات!A:Q,1,FALSE) ->  | D157: =VLOOKUP(B157,البيانات!A:Q,9,FALSE) ->  | K157: =IFERROR(MATCH(B157,البيانات!A:A,0),"") ->  | L157: =IFERROR(INDEX(البيانات!A:Q,K157+6,11),"") ->  | M157: 0 | N157: =IFERROR(INDEX(البيانات!A:Q,K157+6,16),"") ->  | O157: 0
C158: =VLOOKUP(B158,البيانات!A:Q,1,FALSE) ->  | D158: =VLOOKUP(B158,البيانات!A:Q,9,FALSE) ->  | K158: =IFERROR(MATCH(B158,البيانات!A:A,0),"") ->  | L158: =IFERROR(INDEX(البيانات!A:Q,K158+6,11),"") ->  | M158: 0 | N158: =IFERROR(INDEX(البيانات!A:Q,K158+6,16),"") ->  | O158: 0
C159: =VLOOKUP(B159,البيانات!A:Q,1,FALSE) ->  | D159: =VLOOKUP(B159,البيانات!A:Q,9,FALSE) ->  | K159: =IFERROR(MATCH(B159,البيانات!A:A,0),"") ->  | L159: =IFERROR(INDEX(البيانات!A:Q,K159+6,11),"") ->  | M159: 0 | N159: =IFERROR(INDEX(البيانات!A:Q,K159+6,16),"") ->  | O159: 0
C160: =VLOOKUP(B160,البيانات!A:Q,1,FALSE) ->  | D160: =VLOOKUP(B160,البيانات!A:Q,9,FALSE) ->  | K160: =IFERROR(MATCH(B160,البيانات!A:A,0),"") ->  | L160: =IFERROR(INDEX(البيانات!A:Q,K160+6,11),"") ->  | M160: 0 | N160: =IFERROR(INDEX(البيانات!A:Q,K160+6,16),"") ->  | O160: 0
C161: =VLOOKUP(B161,البيانات!A:Q,1,FALSE) ->  | D161: =VLOOKUP(B161,البيانات!A:Q,9,FALSE) ->  | K161: =IFERROR(MATCH(B161,البيانات!A:A,0),"") ->  | L161: =IFERROR(INDEX(البيانات!A:Q,K161+6,11),"") ->  | M161: 0 | N161: =IFERROR(INDEX(البيانات!A:Q,K161+6,16),"") ->  | O161: 0
C162: =VLOOKUP(B162,البيانات!A:Q,1,FALSE) ->  | D162: =VLOOKUP(B162,البيانات!A:Q,9,FALSE) ->  | K162: =IFERROR(MATCH(B162,البيانات!A:A,0),"") ->  | L162: =IFERROR(INDEX(البيانات!A:Q,K162+6,11),"") ->  | M162: 0 | N162: =IFERROR(INDEX(البيانات!A:Q,K162+6,16),"") ->  | O162: 0
C163: =VLOOKUP(B163,البيانات!A:Q,1,FALSE) ->  | D163: =VLOOKUP(B163,البيانات!A:Q,9,FALSE) ->  | K163: =IFERROR(MATCH(B163,البيانات!A:A,0),"") ->  | L163: =IFERROR(INDEX(البيانات!A:Q,K163+6,11),"") ->  | M163: 0 | N163: =IFERROR(INDEX(البيانات!A:Q,K163+6,16),"") ->  | O163: 0
C164: =VLOOKUP(B164,البيانات!A:Q,1,FALSE) ->  | D164: =VLOOKUP(B164,البيانات!A:Q,9,FALSE) ->  | K164: =IFERROR(MATCH(B164,البيانات!A:A,0),"") ->  | L164: =IFERROR(INDEX(البيانات!A:Q,K164+6,11),"") ->  | M164: 0 | N164: =IFERROR(INDEX(البيانات!A:Q,K164+6,16),"") ->  | O164: 0
C165: =VLOOKUP(B165,البيانات!A:Q,1,FALSE) ->  | D165: =VLOOKUP(B165,البيانات!A:Q,9,FALSE) ->  | K165: =IFERROR(MATCH(B165,البيانات!A:A,0),"") ->  | L165: =IFERROR(INDEX(البيانات!A:Q,K165+6,11),"") ->  | M165: 0 | N165: =IFERROR(INDEX(البيانات!A:Q,K165+6,16),"") ->  | O165: 0
C166: =VLOOKUP(B166,البيانات!A:Q,1,FALSE) ->  | D166: =VLOOKUP(B166,البيانات!A:Q,9,FALSE) ->  | K166: =IFERROR(MATCH(B166,البيانات!A:A,0),"") ->  | L166: =IFERROR(INDEX(البيانات!A:Q,K166+6,11),"") ->  | M166: 0 | N166: =IFERROR(INDEX(البيانات!A:Q,K166+6,16),"") ->  | O166: 0
C167: =VLOOKUP(B167,البيانات!A:Q,1,FALSE) ->  | D167: =VLOOKUP(B167,البيانات!A:Q,9,FALSE) ->  | K167: =IFERROR(MATCH(B167,البيانات!A:A,0),"") ->  | L167: =IFERROR(INDEX(البيانات!A:Q,K167+6,11),"") ->  | M167: 0 | N167: =IFERROR(INDEX(البيانات!A:Q,K167+6,16),"") ->  | O167: 0
C168: =VLOOKUP(B168,البيانات!A:Q,1,FALSE) ->  | D168: =VLOOKUP(B168,البيانات!A:Q,9,FALSE) ->  | K168: =IFERROR(MATCH(B168,البيانات!A:A,0),"") ->  | L168: =IFERROR(INDEX(البيانات!A:Q,K168+6,11),"") ->  | M168: 0 | N168: =IFERROR(INDEX(البيانات!A:Q,K168+6,16),"") ->  | O168: 0
C169: =VLOOKUP(B169,البيانات!A:Q,1,FALSE) ->  | D169: =VLOOKUP(B169,البيانات!A:Q,9,FALSE) ->  | K169: =IFERROR(MATCH(B169,البيانات!A:A,0),"") ->  | L169: =IFERROR(INDEX(البيانات!A:Q,K169+6,11),"") ->  | M169: 0 | N169: =IFERROR(INDEX(البيانات!A:Q,K169+6,16),"") ->  | O169: 0
C170: =VLOOKUP(B170,البيانات!A:Q,1,FALSE) ->  | D170: =VLOOKUP(B170,البيانات!A:Q,9,FALSE) ->  | K170: =IFERROR(MATCH(B170,البيانات!A:A,0),"") ->  | L170: =IFERROR(INDEX(البيانات!A:Q,K170+6,11),"") ->  | M170: 0 | N170: =IFERROR(INDEX(البيانات!A:Q,K170+6,16),"") ->  | O170: 0
C171: =VLOOKUP(B171,البيانات!A:Q,1,FALSE) ->  | D171: =VLOOKUP(B171,البيانات!A:Q,9,FALSE) ->  | K171: =IFERROR(MATCH(B171,البيانات!A:A,0),"") ->  | L171: =IFERROR(INDEX(البيانات!A:Q,K171+6,11),"") ->  | M171: 0 | N171: =IFERROR(INDEX(البيانات!A:Q,K171+6,16),"") ->  | O171: 0
C172: =VLOOKUP(B172,البيانات!A:Q,1,FALSE) ->  | D172: =VLOOKUP(B172,البيانات!A:Q,9,FALSE) ->  | K172: =IFERROR(MATCH(B172,البيانات!A:A,0),"") ->  | L172: =IFERROR(INDEX(البيانات!A:Q,K172+6,11),"") ->  | M172: 0 | N172: =IFERROR(INDEX(البيانات!A:Q,K172+6,16),"") ->  | O172: 0
C173: =VLOOKUP(B173,البيانات!A:Q,1,FALSE) ->  | D173: =VLOOKUP(B173,البيانات!A:Q,9,FALSE) ->  | K173: =IFERROR(MATCH(B173,البيانات!A:A,0),"") ->  | L173: =IFERROR(INDEX(البيانات!A:Q,K173+6,11),"") ->  | M173: 0 | N173: =IFERROR(INDEX(البيانات!A:Q,K173+6,16),"") ->  | O173: 0
C174: =VLOOKUP(B174,البيانات!A:Q,1,FALSE) ->  | D174: =VLOOKUP(B174,البيانات!A:Q,9,FALSE) ->  | K174: =IFERROR(MATCH(B174,البيانات!A:A,0),"") ->  | L174: =IFERROR(INDEX(البيانات!A:Q,K174+6,11),"") ->  | M174: 0 | N174: =IFERROR(INDEX(البيانات!A:Q,K174+6,16),"") ->  | O174: 0
C175: =VLOOKUP(B175,البيانات!A:Q,1,FALSE) ->  | D175: =VLOOKUP(B175,البيانات!A:Q,9,FALSE) ->  | K175: =IFERROR(MATCH(B175,البيانات!A:A,0),"") ->  | L175: =IFERROR(INDEX(البيانات!A:Q,K175+6,11),"") ->  | M175: 0 | N175: =IFERROR(INDEX(البيانات!A:Q,K175+6,16),"") ->  | O175: 0
C176: =VLOOKUP(B176,البيانات!A:Q,1,FALSE) ->  | D176: =VLOOKUP(B176,البيانات!A:Q,9,FALSE) ->  | K176: =IFERROR(MATCH(B176,البيانات!A:A,0),"") ->  | L176: =IFERROR(INDEX(البيانات!A:Q,K176+6,11),"") ->  | M176: 0 | N176: =IFERROR(INDEX(البيانات!A:Q,K176+6,16),"") ->  | O176: 0
C177: =VLOOKUP(B177,البيانات!A:Q,1,FALSE) ->  | D177: =VLOOKUP(B177,البيانات!A:Q,9,FALSE) ->  | K177: =IFERROR(MATCH(B177,البيانات!A:A,0),"") ->  | L177: =IFERROR(INDEX(البيانات!A:Q,K177+6,11),"") ->  | M177: 0 | N177: =IFERROR(INDEX(البيانات!A:Q,K177+6,16),"") ->  | O177: 0
C178: =VLOOKUP(B178,البيانات!A:Q,1,FALSE) ->  | D178: =VLOOKUP(B178,البيانات!A:Q,9,FALSE) ->  | K178: =IFERROR(MATCH(B178,البيانات!A:A,0),"") ->  | L178: =IFERROR(INDEX(البيانات!A:Q,K178+6,11),"") ->  | M178: 0 | N178: =IFERROR(INDEX(البيانات!A:Q,K178+6,16),"") ->  | O178: 0
C179: =VLOOKUP(B179,البيانات!A:Q,1,FALSE) ->  | D179: =VLOOKUP(B179,البيانات!A:Q,9,FALSE) ->  | K179: =IFERROR(MATCH(B179,البيانات!A:A,0),"") ->  | L179: =IFERROR(INDEX(البيانات!A:Q,K179+6,11),"") ->  | M179: 0 | N179: =IFERROR(INDEX(البيانات!A:Q,K179+6,16),"") ->  | O179: 0
C180: =VLOOKUP(B180,البيانات!A:Q,1,FALSE) ->  | D180: =VLOOKUP(B180,البيانات!A:Q,9,FALSE) ->  | K180: =IFERROR(MATCH(B180,البيانات!A:A,0),"") ->  | L180: =IFERROR(INDEX(البيانات!A:Q,K180+6,11),"") ->  | M180: 0 | N180: =IFERROR(INDEX(البيانات!A:Q,K180+6,16),"") ->  | O180: 0
C181: =VLOOKUP(B181,البيانات!A:Q,1,FALSE) ->  | D181: =VLOOKUP(B181,البيانات!A:Q,9,FALSE) ->  | K181: =IFERROR(MATCH(B181,البيانات!A:A,0),"") ->  | L181: =IFERROR(INDEX(البيانات!A:Q,K181+6,11),"") ->  | M181: 0 | N181: =IFERROR(INDEX(البيانات!A:Q,K181+6,16),"") ->  | O181: 0
C182: =VLOOKUP(B182,البيانات!A:Q,1,FALSE) ->  | D182: =VLOOKUP(B182,البيانات!A:Q,9,FALSE) ->  | K182: =IFERROR(MATCH(B182,البيانات!A:A,0),"") ->  | L182: =IFERROR(INDEX(البيانات!A:Q,K182+6,11),"") ->  | M182: 0 | N182: =IFERROR(INDEX(البيانات!A:Q,K182+6,16),"") ->  | O182: 0
C183: =VLOOKUP(B183,البيانات!A:Q,1,FALSE) ->  | D183: =VLOOKUP(B183,البيانات!A:Q,9,FALSE) ->  | K183: =IFERROR(MATCH(B183,البيانات!A:A,0),"") ->  | L183: =IFERROR(INDEX(البيانات!A:Q,K183+6,11),"") ->  | M183: 0 | N183: =IFERROR(INDEX(البيانات!A:Q,K183+6,16),"") ->  | O183: 0
C184: =VLOOKUP(B184,البيانات!A:Q,1,FALSE) ->  | D184: =VLOOKUP(B184,البيانات!A:Q,9,FALSE) ->  | K184: =IFERROR(MATCH(B184,البيانات!A:A,0),"") ->  | L184: =IFERROR(INDEX(البيانات!A:Q,K184+6,11),"") ->  | M184: 0 | N184: =IFERROR(INDEX(البيانات!A:Q,K184+6,16),"") ->  | O184: 0
C185: =VLOOKUP(B185,البيانات!A:Q,1,FALSE) ->  | D185: =VLOOKUP(B185,البيانات!A:Q,9,FALSE) ->  | K185: =IFERROR(MATCH(B185,البيانات!A:A,0),"") ->  | L185: =IFERROR(INDEX(البيانات!A:Q,K185+6,11),"") ->  | M185: 0 | N185: =IFERROR(INDEX(البيانات!A:Q,K185+6,16),"") ->  | O185: 0
C186: =VLOOKUP(B186,البيانات!A:Q,1,FALSE) ->  | D186: =VLOOKUP(B186,البيانات!A:Q,9,FALSE) ->  | K186: =IFERROR(MATCH(B186,البيانات!A:A,0),"") ->  | L186: =IFERROR(INDEX(البيانات!A:Q,K186+6,11),"") ->  | M186: 0 | N186: =IFERROR(INDEX(البيانات!A:Q,K186+6,16),"") ->  | O186: 0
C187: =VLOOKUP(B187,البيانات!A:Q,1,FALSE) ->  | D187: =VLOOKUP(B187,البيانات!A:Q,9,FALSE) ->  | K187: =IFERROR(MATCH(B187,البيانات!A:A,0),"") ->  | L187: =IFERROR(INDEX(البيانات!A:Q,K187+6,11),"") ->  | M187: 0 | N187: =IFERROR(INDEX(البيانات!A:Q,K187+6,16),"") ->  | O187: 0
C188: =VLOOKUP(B188,البيانات!A:Q,1,FALSE) ->  | D188: =VLOOKUP(B188,البيانات!A:Q,9,FALSE) ->  | K188: =IFERROR(MATCH(B188,البيانات!A:A,0),"") ->  | L188: =IFERROR(INDEX(البيانات!A:Q,K188+6,11),"") ->  | M188: 0 | N188: =IFERROR(INDEX(البيانات!A:Q,K188+6,16),"") ->  | O188: 0
C189: =VLOOKUP(B189,البيانات!A:Q,1,FALSE) ->  | D189: =VLOOKUP(B189,البيانات!A:Q,9,FALSE) ->  | K189: =IFERROR(MATCH(B189,البيانات!A:A,0),"") ->  | L189: =IFERROR(INDEX(البيانات!A:Q,K189+6,11),"") ->  | M189: 0 | N189: =IFERROR(INDEX(البيانات!A:Q,K189+6,16),"") ->  | O189: 0
C190: =VLOOKUP(B190,البيانات!A:Q,1,FALSE) ->  | D190: =VLOOKUP(B190,البيانات!A:Q,9,FALSE) ->  | K190: =IFERROR(MATCH(B190,البيانات!A:A,0),"") ->  | L190: =IFERROR(INDEX(البيانات!A:Q,K190+6,11),"") ->  | M190: 0 | N190: =IFERROR(INDEX(البيانات!A:Q,K190+6,16),"") ->  | O190: 0
C191: =VLOOKUP(B191,البيانات!A:Q,1,FALSE) ->  | D191: =VLOOKUP(B191,البيانات!A:Q,9,FALSE) ->  | K191: =IFERROR(MATCH(B191,البيانات!A:A,0),"") ->  | L191: =IFERROR(INDEX(البيانات!A:Q,K191+6,11),"") ->  | M191: 0 | N191: =IFERROR(INDEX(البيانات!A:Q,K191+6,16),"") ->  | O191: 0
C192: =VLOOKUP(B192,البيانات!A:Q,1,FALSE) ->  | D192: =VLOOKUP(B192,البيانات!A:Q,9,FALSE) ->  | K192: =IFERROR(MATCH(B192,البيانات!A:A,0),"") ->  | L192: =IFERROR(INDEX(البيانات!A:Q,K192+6,11),"") ->  | M192: 0 | N192: =IFERROR(INDEX(البيانات!A:Q,K192+6,16),"") ->  | O192: 0
C193: =VLOOKUP(B193,البيانات!A:Q,1,FALSE) ->  | D193: =VLOOKUP(B193,البيانات!A:Q,9,FALSE) ->  | K193: =IFERROR(MATCH(B193,البيانات!A:A,0),"") ->  | L193: =IFERROR(INDEX(البيانات!A:Q,K193+6,11),"") ->  | M193: 0 | N193: =IFERROR(INDEX(البيانات!A:Q,K193+6,16),"") ->  | O193: 0
C194: =VLOOKUP(B194,البيانات!A:Q,1,FALSE) ->  | D194: =VLOOKUP(B194,البيانات!A:Q,9,FALSE) ->  | K194: =IFERROR(MATCH(B194,البيانات!A:A,0),"") ->  | L194: =IFERROR(INDEX(البيانات!A:Q,K194+6,11),"") ->  | M194: =IFERROR(SUMIF($D:$D,$D:$D,$L:$L),"") -> 0 | N194: =IFERROR(INDEX(البيانات!A:Q,K194+6,16),"") ->  | O194: =SUMIF($D:$D,$D:$D,$N:$N) -> 0
C195: =VLOOKUP(B195,البيانات!A:Q,1,FALSE) ->  | D195: =VLOOKUP(B195,البيانات!A:Q,9,FALSE) ->  | K195: =IFERROR(MATCH(B195,البيانات!A:A,0),"") ->  | L195: =IFERROR(INDEX(البيانات!A:Q,K195+6,11),"") ->  | M195: 0 | N195: =IFERROR(INDEX(البيانات!A:Q,K195+6,16),"") ->  | O195: 0
C196: =VLOOKUP(B196,البيانات!A:Q,1,FALSE) ->  | D196: =VLOOKUP(B196,البيانات!A:Q,9,FALSE) ->  | K196: =IFERROR(MATCH(B196,البيانات!A:A,0),"") ->  | L196: =IFERROR(INDEX(البيانات!A:Q,K196+6,11),"") ->  | M196: 0 | N196: =IFERROR(INDEX(البيانات!A:Q,K196+6,16),"") ->  | O196: 0
C197: =VLOOKUP(B197,البيانات!A:Q,1,FALSE) ->  | D197: =VLOOKUP(B197,البيانات!A:Q,9,FALSE) ->  | K197: =IFERROR(MATCH(B197,البيانات!A:A,0),"") ->  | L197: =IFERROR(INDEX(البيانات!A:Q,K197+6,11),"") ->  | M197: 0 | N197: =IFERROR(INDEX(البيانات!A:Q,K197+6,16),"") ->  | O197: 0
C198: =VLOOKUP(B198,البيانات!A:Q,1,FALSE) ->  | D198: =VLOOKUP(B198,البيانات!A:Q,9,FALSE) ->  | K198: =IFERROR(MATCH(B198,البيانات!A:A,0),"") ->  | L198: =IFERROR(INDEX(البيانات!A:Q,K198+6,11),"") ->  | M198: 0 | N198: =IFERROR(INDEX(البيانات!A:Q,K198+6,16),"") ->  | O198: 0
C199: =VLOOKUP(B199,البيانات!A:Q,1,FALSE) ->  | D199: =VLOOKUP(B199,البيانات!A:Q,9,FALSE) ->  | K199: =IFERROR(MATCH(B199,البيانات!A:A,0),"") ->  | L199: =IFERROR(INDEX(البيانات!A:Q,K199+6,11),"") ->  | M199: 0 | N199: =IFERROR(INDEX(البيانات!A:Q,K199+6,16),"") ->  | O199: 0
C200: =VLOOKUP(B200,البيانات!A:Q,1,FALSE) ->  | D200: =VLOOKUP(B200,البيانات!A:Q,9,FALSE) ->  | K200: =IFERROR(MATCH(B200,البيانات!A:A,0),"") ->  | L200: =IFERROR(INDEX(البيانات!A:Q,K200+6,11),"") ->  | M200: 0 | N200: =IFERROR(INDEX(البيانات!A:Q,K200+6,16),"") ->  | O200: 0
... 1243 more rows

Sheet ورقة1
A2: 940230 | E2: =OFFSET($A$1,1,0,COUNTA($A:$A),1) -> 940230

Sheet المناطق
A1: المنطقة f1 | B1: اجمالي المنطقة | C1: عدد الفواتير | D1: اكبر إجمالي منطقة | E1: المنطقة f1 | F1: عدد الفواتير | H1: المنطقة f1 | I1: match | J1: index
A2: 3 | B2: =VLOOKUP(A2,القوائم!D:N,10,FALSE) -> 48016.2 | C2: =VLOOKUP(A2,القوائم!D:O,12,FALSE) -> 30 | D2: =القوائم!U1 -> 48016.2 | E2: =القوائم!W1 -> 3 | F2: =القوائم!Y1 -> 30 | H2: 3 | I2: =MATCH(D2,#REF!,0) ->  | J2: =INDEX(A:C,I2,1) -> 
A3: 4 | B3: =VLOOKUP(A3,القوائم!D:N,10,FALSE) -> 7941 | C3: =VLOOKUP(A3,القوائم!D:O,12,FALSE) -> 10 | H3: 3
A4: 5 | B4: =VLOOKUP(A4,القوائم!D:N,10,FALSE) -> 41105.2 | C4: =VLOOKUP(A4,القوائم!D:O,12,FALSE) -> 40 | D4: إجمالي عدد إيصالات جميع المناطق | H4: 3
A5: 6 | B5: =VLOOKUP(A5,القوائم!D:N,10,FALSE) -> 3840 | C5: =VLOOKUP(A5,القوائم!D:O,12,FALSE) -> 5 | D5: =SUM(القوائم!O:O) -> 815 | H5: 3
A6: 7 | B6: =VLOOKUP(A6,القوائم!D:N,10,FALSE) ->  | C6: =VLOOKUP(A6,القوائم!D:O,12,FALSE) ->  | H6: 3
A7: 8 | B7: =VLOOKUP(A7,القوائم!D:N,10,FALSE) ->  | C7: =VLOOKUP(A7,القوائم!D:O,12,FALSE) ->  | H7: 3
A8: 9 | B8: =VLOOKUP(A8,القوائم!D:N,10,FALSE) ->  | C8: =VLOOKUP(A8,القوائم!D:O,12,FALSE) ->  | H8: 3
A9: 10 | B9: =VLOOKUP(A9,القوائم!D:N,10,FALSE) ->  | C9: =VLOOKUP(A9,القوائم!D:O,12,FALSE) ->  | H9: 3
A10: 11 | B10: =VLOOKUP(A10,القوائم!D:N,10,FALSE) ->  | C10: =VLOOKUP(A10,القوائم!D:O,12,FALSE) ->  | H10: 3
A11: 12 | B11: =VLOOKUP(A11,القوائم!D:N,10,FALSE) ->  | C11: =VLOOKUP(A11,القوائم!D:O,12,FALSE) ->  | H11: 3
A12: 39 | B12: =VLOOKUP(A12,القوائم!D:N,10,FALSE) ->  | C12: =VLOOKUP(A12,القوائم!D:O,12,FALSE) ->  | H12: 3
A13: 42 | B13: =VLOOKUP(A13,القوائم!D:N,10,FALSE) ->  | C13: =VLOOKUP(A13,القوائم!D:O,12,FALSE) ->  | H13: 4
A14: 43 | B14: =VLOOKUP(A14,القوائم!D:N,10,FALSE) ->  | C14: =VLOOKUP(A14,القوائم!D:O,12,FALSE) ->  | H14: 4
A15: 44 | B15: =VLOOKUP(A15,القوائم!D:N,10,FALSE) ->  | C15: =VLOOKUP(A15,القوائم!D:O,12,FALSE) ->  | H15: 4
A16: 46 | B16: =VLOOKUP(A16,القوائم!D:N,10,FALSE) ->  | C16: =VLOOKUP(A16,القوائم!D:O,12,FALSE) ->  | H16: 5
A17: 47 | B17: =VLOOKUP(A17,القوائم!D:N,10,FALSE) ->  | C17: =VLOOKUP(A17,القوائم!D:O,12,FALSE) ->  | H17: 5
A18: 48 | B18: =VLOOKUP(A18,القوائم!D:N,10,FALSE) ->  | C18: =VLOOKUP(A18,القوائم!D:O,12,FALSE) ->  | H18: 5
A19: 49 | B19: =VLOOKUP(A19,القوائم!D:N,10,FALSE) ->  | C19: =VLOOKUP(A19,القوائم!D:O,12,FALSE) ->  | H19: 5
A20: 50 | B20: =VLOOKUP(A20,القوائم!D:N,10,FALSE) ->  | C20: =VLOOKUP(A20,القوائم!D:O,12,FALSE) ->  | H20: 5
A21: 51 | B21: =VLOOKUP(A21,القوائم!D:N,10,FALSE) ->  | C21: =VLOOKUP(A21,القوائم!D:O,12,FALSE) ->  | H21: 5
A22: 52 | B22: =VLOOKUP(A22,القوائم!D:N,10,FALSE) ->  | C22: =VLOOKUP(A22,القوائم!D:O,12,FALSE) ->  | H22: 5
A23: 53 | B23: =VLOOKUP(A23,القوائم!D:N,10,FALSE) ->  | C23: =VLOOKUP(A23,القوائم!D:O,12,FALSE) ->  | H23: 5
A24: 54 | B24: =VLOOKUP(A24,القوائم!D:N,10,FALSE) ->  | C24: =VLOOKUP(A24,القوائم!D:O,12,FALSE) ->  | H24: 5
A25: 55 | B25: =VLOOKUP(A25,القوائم!D:N,10,FALSE) ->  | C25: =VLOOKUP(A25,القوائم!D:O,12,FALSE) ->  | H25: 5
A26: 56 | B26: =VLOOKUP(A26,القوائم!D:N,10,FALSE) ->  | C26: =VLOOKUP(A26,القوائم!D:O,12,FALSE) ->  | H26: 5
A27: 57 | B27: =VLOOKUP(A27,القوائم!D:N,10,FALSE) ->  | C27: =VLOOKUP(A27,القوائم!D:O,12,FALSE) ->  | H27: 6
A28: 58 | B28: =VLOOKUP(A28,القوائم!D:N,10,FALSE) ->  | C28: =VLOOKUP(A28,القوائم!D:O,12,FALSE) ->  | H28: 6
A29: 59 | B29: =VLOOKUP(A29,القوائم!D:N,10,FALSE) ->  | C29: =VLOOKUP(A29,القوائم!D:O,12,FALSE) ->  | H29: 6
A30: 60 | B30: =VLOOKUP(A30,القوائم!D:N,10,FALSE) ->  | C30: =VLOOKUP(A30,القوائم!D:O,12,FALSE) ->  | H30: 6
A31: 61 | B31: =VLOOKUP(A31,القوائم!D:N,10,FALSE) ->  | C31: =VLOOKUP(A31,القوائم!D:O,12,FALSE) ->  | H31: 6
A32: 62 | B32: =VLOOKUP(A32,القوائم!D:N,10,FALSE) ->  | C32: =VLOOKUP(A32,القوائم!D:O,12,FALSE) ->  | H32: 6
A33: 63 | B33: =VLOOKUP(A33,القوائم!D:N,10,FALSE) ->  | C33: =VLOOKUP(A33,القوائم!D:O,12,FALSE) ->  | H33: 6
A34: 64 | B34: =VLOOKUP(A34,القوائم!D:N,10,FALSE) ->  | C34: =VLOOKUP(A34,القوائم!D:O,12,FALSE) ->  | H34: 6
A35: 65 | B35: =VLOOKUP(A35,القوائم!D:N,10,FALSE) ->  | C35: =VLOOKUP(A35,القوائم!D:O,12,FALSE) ->  | H35: 6
A36: 66 | B36: =VLOOKUP(A36,القوائم!D:N,10,FALSE) ->  | C36: =VLOOKUP(A36,القوائم!D:O,12,FALSE) ->  | H36: 7
A37: 67 | B37: =VLOOKUP(A37,القوائم!D:N,10,FALSE) ->  | C37: =VLOOKUP(A37,القوائم!D:O,12,FALSE) ->  | H37: 7
A38: 68 | B38: =VLOOKUP(A38,القوائم!D:N,10,FALSE) ->  | C38: =VLOOKUP(A38,القوائم!D:O,12,FALSE) ->  | H38: 7
A39: 69 | B39: =VLOOKUP(A39,القوائم!D:N,10,FALSE) ->  | C39: =VLOOKUP(A39,القوائم!D:O,12,FALSE) ->  | H39: 7
A40: 70 | B40: =VLOOKUP(A40,القوائم!D:N,10,FALSE) ->  | C40: =VLOOKUP(A40,القوائم!D:O,12,FALSE) ->  | H40: 7
A41: 71 | B41: =VLOOKUP(A41,القوائم!D:N,10,FALSE) ->  | C41: =VLOOKUP(A41,القوائم!D:O,12,FALSE) ->  | H41: 7
A42: 72 | B42: =VLOOKUP(A42,القوائم!D:N,10,FALSE) ->  | C42: =VLOOKUP(A42,القوائم!D:O,12,FALSE) ->  | H42: 7
A43: 73 | B43: =VLOOKUP(A43,القوائم!D:N,10,FALSE) ->  | C43: =VLOOKUP(A43,القوائم!D:O,12,FALSE) ->  | H43: 7
A44: 74 | B44: =VLOOKUP(A44,القوائم!D:N,10,FALSE) ->  | C44: =VLOOKUP(A44,القوائم!D:O,12,FALSE) ->  | H44: 7
A45: 75 | B45: =VLOOKUP(A45,القوائم!D:N,10,FALSE) ->  | C45: =VLOOKUP(A45,القوائم!D:O,12,FALSE) ->  | H45: 7
A46: 76 | B46: =VLOOKUP(A46,القوائم!D:N,10,FALSE) ->  | C46: =VLOOKUP(A46,القوائم!D:O,12,FALSE) ->  | H46: 7
A47: 77 | B47: =VLOOKUP(A47,القوائم!D:N,10,FALSE) ->  | C47: =VLOOKUP(A47,القوائم!D:O,12,FALSE) ->  | H47: 7
A48: 78 | B48: =VLOOKUP(A48,القوائم!D:N,10,FALSE) ->  | C48: =VLOOKUP(A48,القوائم!D:O,12,FALSE) ->  | H48: 7
A49: 79 | B49: =VLOOKUP(A49,القوائم!D:N,10,FALSE) ->  | C49: =VLOOKUP(A49,القوائم!D:O,12,FALSE) ->  | H49: 7
A50: 80 | B50: =VLOOKUP(A50,القوائم!D:N,10,FALSE) ->  | C50: =VLOOKUP(A50,القوائم!D:O,12,FALSE) ->  | H50: 7
A51: 81 | B51: =VLOOKUP(A51,القوائم!D:N,10,FALSE) ->  | C51: =VLOOKUP(A51,القوائم!D:O,12,FALSE) ->  | H51: 8
A52: 82 | B52: =VLOOKUP(A52,القوائم!D:N,10,FALSE) ->  | C52: =VLOOKUP(A52,القوائم!D:O,12,FALSE) ->  | H52: 8
A53: 83 | B53: =VLOOKUP(A53,القوائم!D:N,10,FALSE) ->  | C53: =VLOOKUP(A53,القوائم!D:O,12,FALSE) ->  | H53: 8
A54: 84 | B54: =VLOOKUP(A54,القوائم!D:N,10,FALSE) ->  | C54: =VLOOKUP(A54,القوائم!D:O,12,FALSE) ->  | H54: 8
A55: 85 | B55: =VLOOKUP(A55,القوائم!D:N,10,FALSE) ->  | C55: =VLOOKUP(A55,القوائم!D:O,12,FALSE) ->  | H55: 8
A56: 86 | B56: =VLOOKUP(A56,القوائم!D:N,10,FALSE) ->  | C56: =VLOOKUP(A56,القوائم!D:O,12,FALSE) ->  | H56: 8
A57: 87 | B57: =VLOOKUP(A57,القوائم!D:N,10,FALSE) ->  | C57: =VLOOKUP(A57,القوائم!D:O,12,FALSE) ->  | H57: 8
A58: 88 | B58: =VLOOKUP(A58,القوائم!D:N,10,FALSE) ->  | C58: =VLOOKUP(A58,القوائم!D:O,12,FALSE) ->  | H58: 8
A59: 89 | B59: =VLOOKUP(A59,القوائم!D:N,10,FALSE) ->  | C59: =VLOOKUP(A59,القوائم!D:O,12,FALSE) ->  | H59: 8
A60: 90 | B60: =VLOOKUP(A60,القوائم!D:N,10,FALSE) ->  | C60: =VLOOKUP(A60,القوائم!D:O,12,FALSE) ->  | H60: 8
A61: 91 | B61: =VLOOKUP(A61,القوائم!D:N,10,FALSE) ->  | C61: =VLOOKUP(A61,القوائم!D:O,12,FALSE) ->  | H61: 8
A62: 92 | B62: =VLOOKUP(A62,القوائم!D:N,10,FALSE) ->  | C62: =VLOOKUP(A62,القوائم!D:O,12,FALSE) ->  | H62: 8
A63: 93 | B63: =VLOOKUP(A63,القوائم!D:N,10,FALSE) ->  | C63: =VLOOKUP(A63,القوائم!D:O,12,FALSE) ->  | H63: 8
A64: 94 | B64: =VLOOKUP(A64,القوائم!D:N,10,FALSE) ->  | C64: =VLOOKUP(A64,القوائم!D:O,12,FALSE) ->  | H64: 8
A65: 95 | B65: =VLOOKUP(A65,القوائم!D:N,10,FALSE) ->  | C65: =VLOOKUP(A65,القوائم!D:O,12,FALSE) ->  | H65: 8
A66: 96 | B66: =VLOOKUP(A66,القوائم!D:N,10,FALSE) ->  | C66: =VLOOKUP(A66,القوائم!D:O,12,FALSE) ->  | H66: 8
A67: 97 | B67: =VLOOKUP(A67,القوائم!D:N,10,FALSE) ->  | C67: =VLOOKUP(A67,القوائم!D:O,12,FALSE) ->  | H67: 8
A68: 98 | B68: =VLOOKUP(A68,القوائم!D:N,10,FALSE) ->  | C68: =VLOOKUP(A68,القوائم!D:O,12,FALSE) ->  | H68: 8
A69: 99 | B69: =VLOOKUP(A69,القوائم!D:N,10,FALSE) ->  | C69: =VLOOKUP(A69,القوائم!D:O,12,FALSE) ->  | H69: 8
H70: 8
H71: 8
H72: 8
H73: 8
H74: 8
H75: 8
H76: 9
H77: 9
H78: 9
H79: 9
H80: 9
H81: 9
H82: 9
H83: 9
H84: 9
H85: 9
H86: 9
H87: 9
H88: 9
H89: 9
H90: 9
H91: 10
H92: 10
H93: 10
H94: 10
H95: 10
H96: 10
H97: 10
H98: 10
H99: 10
H100: 10
H101: 10
H102: 10
H103: 10
H104: 10
H105: 10
H106: 10
H107: 10
H108: 10
H109: 10
H110: 10
H111: 10
H112: 10
H113: 10
H114: 10
H115: 10
H116: 10
H117: 10
H118: 10
H119: 10
H120: 10
H121: 10
H122: 10
H123: 10
H124: 10
H125: 10
H126: 10
H127: 10
H128: 10
H129: 10
H130: 10
H131: 10
H132: 10
H133: 10
H134: 10
H135: 10
H136: 10
H137: 10
H138: 10
H139: 10
H140: 10
H141: 10
H142: 11
H143: 11
H144: 11
H145: 11
H146: 11
H147: 11
H148: 11
H149: 11
H150: 11
H151: 11
H152: 11
H153: 11
H154: 11
H155: 11
H156: 11
H157: 11
H158: 11
H159: 11
H160: 11
H161: 11
H162: 11
H163: 11
H164: 11
H165: 11
H166: 11
H167: 11
H168: 11
H169: 11
H170: 11
H171: 11
H172: 12
H173: 12
H174: 12
H175: 12
H176: 12
H177: 12
H178: 39
H179: 42
H180: 42
H181: 42
H182: 42
H183: 42
H184: 42
H185: 42
H186: 42
H187: 42
H188: 42
H189: 42
H190: 42
H191: 42
H192: 43
H193: 44
H194: 44
H195: 44
H196: 44
H197: 44
H198: 44
H199: 44
H200: 44
... 1115 more rows
